Workbook

Sheet Auslegung
B1: =Translation!A4 -> WWK-Renditerechner
B5: =Translation!A5 -> Bitte wählen Sie Entnahmestellen und Nutzungshäufigkeit
C7: =Translation!$A$6 -> Badewanne
C9: =Translation!$A$7 -> Dusche
C11: =Translation!$A$8 -> Badwaschbecken
C13: =Translation!$A$9 -> Küchenspüle
C15: =Translation!$A$10 -> Handwaschbecken
B18: =Translation!A20 -> Bitte wählen Sie die Warmwasser-Wärmepumpe
C20: =Translation!A40 -> Typ Wärmepumpe
C22: =Translation!A41 -> Jahresarbeitszahl | H22: 3.96
C24: =Translation!A42 -> Wärmeverluste [kWh/Tag] | H24: 0.648
C26: =Translation!A43 -> Investitionskosten [€] | H26: 2350
C28: =Translation!A44 -> Installationskosten [€] | H28: 350
B31: =Translation!A21 -> Wie erzeugen Sie aktuell Ihr Warmwasser ?
C33: =Translation!A45 -> Wärmeerzeuger
C35: =Translation!A22 -> Speicher defekt ? | H35: 1.12
C37: =Translation!A42 -> Wärmeverluste [kWh/Tag] | H37: 1.12
C39: =Translation!A43 -> Investitionskosten [€] | H39: 1550
C41: =Translation!A44 -> Installationskosten [€] | H41: 350 | O41: =Translation!A38 -> Einsatz des Berechnungstools ausschließlich zur Bestimmung der Wirtschaftlichkeit von Warmwasser-Wärmepumpen. Es ersetzt nicht die Auslegung der erforderlichen Speichergröße von Wärmepumpe und Standspeicher.
AE43: IMT v1.09
U55: 2 x WPF 52 | AB55: 2 x WPF 40

Sheet Ausdruck (hidden)
A1: =Translation!A4 -> WWK-Renditerechner
Z2: =RIGHT(Auslegung!AE43,FIND(" ",Auslegung!AE43)+1) -> v1.09
B4: =Translation!A113 -> Eingabewerte
B6: =Translation!A103 -> Entnahmestellen | J6: =Translation!A104 -> Nutzungshäufigkeit
B7: =Translation!$A$6 -> Badewanne | J7: =Berechnung!A5 -> 2 x pro Woche
B8: =Translation!$A$7 -> Dusche | J8: =Berechnung!C5 -> 15 x pro Woche
B9: =Translation!$A$8 -> Badwaschbecken | J9: =Berechnung!E5 -> 8 x pro Tag
B10: =Translation!$A$9 -> Küchenspüle | J10: =Berechnung!G5 -> 4 x pro Tag
B11: =Translation!$A$10 -> Handwaschbecken | J11: =Berechnung!I5 -> 3 x pro Tag
B13: =Translation!A105 -> Warmwasser-Wärmepumpe
B14: =Translation!A40 -> Typ Wärmepumpe | G14: Stiebel Eltron GmbH & Co. KG | J14: =Berechnung!C61 -> WWK 220 electronic
B15: =Translation!A41 -> Jahresarbeitszahl | G15: Dr.-Stiebel-Straße | J15: =FIXED(Berechnung!C62,2) -> 3,96
B16: =Translation!A42 -> Wärmeverluste [kWh/Tag] | G16: 37603 Holzminden | J16: =Berechnung!C63 -> 0.648
B17: =Translation!A43 -> Investitionskosten [€] | G17: 05531 / 702 110 | J17: =Berechnung!C64 -> 2350
B18: =Translation!A44 -> Installationskosten [€] | J18: =Berechnung!C65 -> 350
B52: =Translation!A113 -> Eingabewerte
B54: =Translation!A112 -> Alter Wärmeerzeuger
B55: =Translation!A45 -> Wärmeerzeuger | J55: =Berechnung!C77 -> E-Speicher SHW 200 S
B56: =Translation!A22 -> Speicher defekt ? | J56: =Berechnung!Q5 -> Austausch ist erforderlich
B57: =Translation!A42 -> Wärmeverluste [kWh/Tag] | J57: =Berechnung!C79 -> 1.12
B58: =Translation!A43 -> Investitionskosten [€] | J58: =Berechnung!C80 -> 1550
B59: =Translation!A44 -> Installationskosten [€] | J59: =Berechnung!C81 -> 350
B60: =Translation!A107 -> Speichertemperatur | J60: =Berechnung!C83&" °C" -> 55 °C
B61: =Translation!A116 -> Wirkungsgrad WWB | J61: =Berechnung!C87 -> 0.95
B62: =Translation!A114 -> Energieträger | J62: =IF(Berechnung!C84=1,Translation!A108,IF(Berechnung!C84=2,Translation!A109,IF(Berechnung!C84=3,Translation!A110,Translation!A111))) -> Strom
B63: =Translation!A115 -> Energiepreis | J63: =Berechnung!C86&" Ct/kWh" -> 28 Ct/kWh
B64: =Translation!A117 -> Preissteigerung | J64: =Berechnung!C88&" "&Translation!A84 -> 3 % pro Jahr
B65: =Translation!A118 -> CO2-Emmision | J65: =Berechnung!C85&" g/kWh" -> 621 g/kWh
B102: =Translation!A18 -> Energiebedarf
B152: =Translation!A19 -> Energiekosten
B202: =Translation!A46 -> Amortisation
B252: =Translation!A54 -> Rendite
B302: =Translation!A119 -> Rechtliche Hinweise
B304: =Translation!A120 -> Stiebel Eltron übernimmt keinerlei Gewährleistung oder Garantie dafür, dass die bereitgestellten Angaben, Werte und Informationen oder die mit Hilfe bzw. anhand dieser Informationen, Werte und Angaben ermittelten Werte und Angaben in jeder Hinsicht vollständig, genau, richtig und aktuell sind. Stiebel Eltron behält sich das Recht vor, jederzeit und ohne vorherige Ankündigung Änderungen der bereitgestellten Angaben, Werte und Informationen vorzunehmen. Irrtum und Änderungen sind ausdrücklich vorbehalten. Keine der bereitgestellten Angaben, Werte und Informationen oder der mit Hilfe bzw. anhand dieser Angaben, Werte und Informationen ermittelten Werte und Angaben sind als Grundlage für eine finanzielle Entscheidung oder für einen sonstigen Zweck anzusehen, sondern dienen vielmehr nur als eine erste unverbindliche Information und als Hilfe zur ersten Orientierung. Unter keinen Umständen ersetzt die Planungshilfe die Beratung durch Stiebel Eltron oder einen autorisierten Fachplaner. Bitte wenden Sie sich für die konkrete Planung des Projektes an Stiebel Eltron oder einen anderen autorisierten Fachplaner. Die Haftung von Stiebel Eltron für Schäden jeglicher Art, die sich möglicherweise aus der Nutzung oder Verwendung der bereitgestellten Informationen, Werte und Angaben oder der mit Hilfe bzw. anhand dieser Angaben, Werte und Informationen ermittelten Werte und Angaben, ergeben, ist ausgeschlossen. Dieser Haftungsausschluss gilt nicht, wenn der Schaden auf Vorsatz oder grobe Fahrlässigkeit von Stiebel Eltron zurückzuführen ist sowie bei einer Verletzung des Lebens, des Körpers oder der Gesundheit.

Sheet Einstellungen (hidden)
C7: =Translation!A69 -> Einstellungen
I8: Text Übersetzung "Wirklich zurücksetzen ?"
C10: =Translation!A76 -> Nutzungsdauer Warmwasser | D10: 49 | E10: =Translation!A80 -> Wochen/Jahr | I10: =Translation!A91 -> Alle Änderungen werden verworfen. Fortfahren?
C12: =Translation!A81 -> Kaltwassertemperatur | D12: 10 | E12: °C | I12: =Translation!A69 -> Einstellungen
C14: =Translation!A77 -> CO2-Emmision Strom | D14: 621 | E14: g/kWh
C16: =Translation!A78 -> CO2-Emmision Öl | D16: 321 | E16: g/kWh
C18: =Translation!A79 -> CO2-Emmision Gas | D18: 253 | E18: g/kWh
C20: =Translation!A85 -> Wärmeverluste Warmwasserverteilung | D20: 10 | E20: %
C22: =Translation!A93 -> Anteil integrierter Heizstab Wärmepumpe | D22: 2 | E22: %
C24: =Translation!A94 -> Guthabenzinssatz bei Bank-Geldanlage | D24: 2 | E24: =Translation!A84 -> % pro Jahr
C29: =Translation!$A$86 -> Mittlerer Durchfluss | D29: 10 | E29: =Translation!$A$89 -> Liter/min
C31: =Translation!$A$87 -> Entnahmedauer | D31: 12 | E31: =Translation!$A$90 -> min
C33: =Translation!$A$88 -> Entnahmetemperatur | D33: 40 | E33: °C
C38: =Translation!$A$86 -> Mittlerer Durchfluss | D38: 8 | E38: =Translation!$A$89 -> Liter/min
C40: =Translation!$A$87 -> Entnahmedauer | D40: 6 | E40: =Translation!$A$90 -> min
C42: =Translation!$A$88 -> Entnahmetemperatur | D42: 38 | E42: °C
C47: =Translation!$A$86 -> Mittlerer Durchfluss | D47: 4 | E47: =Translation!$A$89 -> Liter/min
C49: =Translation!$A$87 -> Entnahmedauer | D49: 0.5 | E49: =Translation!$A$90 -> min
C51: =Translation!$A$88 -> Entnahmetemperatur | D51: 40 | E51: °C
C56: =Translation!$A$86 -> Mittlerer Durchfluss | D56: 4 | E56: =Translation!$A$89 -> Liter/min
C58: =Translation!$A$87 -> Entnahmedauer | D58: 0.5 | E58: =Translation!$A$90 -> min
C60: =Translation!$A$88 -> Entnahmetemperatur | D60: 50 | E60: °C
C65: =Translation!$A$86 -> Mittlerer Durchfluss | D65: 2 | E65: =Translation!$A$89 -> Liter/min
C67: =Translation!$A$87 -> Entnahmedauer | D67: 0.5 | E67: =Translation!$A$90 -> min
C69: =Translation!$A$88 -> Entnahmetemperatur | D69: 40 | E69: °C
C74: =Translation!A73 -> Strompreis | D74: 28 | E74: =Translation!$A$92 -> Ct/kWh
C76: =Translation!A74 -> Ölpreis | D76: 8.5 | E76: =Translation!$A$92 -> Ct/kWh
C78: =Translation!A75 -> Gaspreis | D78: 7.5 | E78: =Translation!$A$92 -> Ct/kWh
C80: =Translation!A82 -> Strompreissteigerung | D80: 3 | E80: =Translation!$A$84 -> % pro Jahr
C82: =Translation!A83 -> Preissteigerung Öl/Gas | D82: 5 | E82: =Translation!$A$84 -> % pro Jahr
C87: =Translation!A101 -> Jährlicher Ertrag Solaranlage | D87: 950 | E87: kWh / KWp
C89: =Translation!A97 -> Eigenverbrauchsanteil | D89: 40 | E89: %
C91: =Translation!A99 -> Strombedarf Haushalt | D91: 4000 | E91: =Translation!A27 -> kWh/Jahr
C93: =Translation!A100 -> Einspeisevergütung | D93: 12.9 | E93: =Translation!A92 -> Ct/kWh

Sheet Berechnung (hidden)
A1: VBA-Zugriff
A2: Comboboxen
A3: Badewanne | C3: Dusche | E3: Badwaschbecken | G3: Küchenspüle | I3: Handwaschbecken | K3: Sprachen | Q3: Speicher defekt ?
A5: 2 x pro Woche | B5: =VLOOKUP(A5,A6:B50,2,FALSE) -> 2 | C5: 15 x pro Woche | D5: =VLOOKUP(C5,C6:D50,2,FALSE) -> 15 | E5: 8 x pro Tag | F5: =VLOOKUP(E5,E6:F50,2,FALSE)*7 -> 56 | G5: 4 x pro Tag | H5: =VLOOKUP(G5,G6:H50,2,FALSE)*7 -> 28 | I5: 3 x pro Tag | J5: =VLOOKUP(I5,I6:J50,2,FALSE)*7 -> 21 | K5: 1 | L5: =VLOOKUP(K5,K7:L49,2,FALSE) -> Deutsch | Q5: Austausch ist erforderlich | R5: =IF(Q5=Q7,TRUE,FALSE) -> TRUE
A7: =Translation!A13 -> Keine Badewanne | B7: 0 | C7: =Translation!A14 -> Keine Dusche | D7: 0 | E7: =Translation!A15 -> Kein Waschbecken | F7: 0 | G7: =Translation!A16 -> Keine Küchenspüle | H7: 0 | I7: =Translation!A17 -> Kein Waschbecken | J7: 0 | K7: 1 | L7: Deutsch | Q7: =Translation!A23 -> Austausch ist erforderlich
A8: =B8&" x "&Translation!$A$11 -> 1 x pro Woche | B8: 1 | C8: =D8&" x "&Translation!$A$11 -> 1 x pro Woche | D8: 1 | E8: =F8&" x "&Translation!$A$12 -> 1 x pro Tag | F8: 1 | G8: =H8&" x "&Translation!$A$12 -> 1 x pro Tag | H8: 1 | I8: =J8&" x "&Translation!$A$12 -> 1 x pro Tag | J8: 1 | K8: 2 | L8: English Int | Q8: =Translation!A24 -> Austausch nicht erforderlich
A9: =B9&" x "&Translation!$A$11 -> 2 x pro Woche | B9: 2 | C9: =D9&" x "&Translation!$A$11 -> 2 x pro Woche | D9: 2 | E9: =F9&" x "&Translation!$A$12 -> 2 x pro Tag | F9: 2 | G9: =H9&" x "&Translation!$A$12 -> 2 x pro Tag | H9: 2 | I9: =J9&" x "&Translation!$A$12 -> 2 x pro Tag | J9: 2 | K9: 3 | L9: English UK
A10: =B10&" x "&Translation!$A$11 -> 3 x pro Woche | B10: 3 | C10: =D10&" x "&Translation!$A$11 -> 3 x pro Woche | D10: 3 | E10: =F10&" x "&Translation!$A$12 -> 3 x pro Tag | F10: 3 | G10: =H10&" x "&Translation!$A$12 -> 3 x pro Tag | H10: 3 | I10: =J10&" x "&Translation!$A$12 -> 3 x pro Tag | J10: 3 | K10: 4 | L10: Nederlands
A11: =B11&" x "&Translation!$A$11 -> 4 x pro Woche | B11: 4 | C11: =D11&" x "&Translation!$A$11 -> 4 x pro Woche | D11: 4 | E11: =F11&" x "&Translation!$A$12 -> 4 x pro Tag | F11: 4 | G11: =H11&" x "&Translation!$A$12 -> 4 x pro Tag | H11: 4 | I11: =J11&" x "&Translation!$A$12 -> 4 x pro Tag | J11: 4 | K11: 5 | L11: Francais
A12: =B12&" x "&Translation!$A$11 -> 5 x pro Woche | B12: 5 | C12: =D12&" x "&Translation!$A$11 -> 5 x pro Woche | D12: 5 | E12: =F12&" x "&Translation!$A$12 -> 5 x pro Tag | F12: 5 | G12: =H12&" x "&Translation!$A$12 -> 5 x pro Tag | H12: 5 | I12: =J12&" x "&Translation!$A$12 -> 5 x pro Tag | J12: 5 | K12: 6 | L12: Slovak
A13: =B13&" x "&Translation!$A$11 -> 6 x pro Woche | B13: 6 | C13: =D13&" x "&Translation!$A$11 -> 6 x pro Woche | D13: 6 | E13: =F13&" x "&Translation!$A$12 -> 6 x pro Tag | F13: 6 | G13: =H13&" x "&Translation!$A$12 -> 6 x pro Tag | H13: 6 | I13: =J13&" x "&Translation!$A$12 -> 6 x pro Tag | J13: 6 | K13: 7 | L13: tecalor
A14: =B14&" x "&Translation!$A$11 -> 7 x pro Woche | B14: 7 | C14: =D14&" x "&Translation!$A$11 -> 7 x pro Woche | D14: 7 | E14: =F14&" x "&Translation!$A$12 -> 7 x pro Tag | F14: 7 | G14: =H14&" x "&Translation!$A$12 -> 7 x pro Tag | H14: 7 | I14: =J14&" x "&Translation!$A$12 -> 7 x pro Tag | J14: 7
A15: =B15&" x "&Translation!$A$11 -> 8 x pro Woche | B15: 8 | C15: =D15&" x "&Translation!$A$11 -> 8 x pro Woche | D15: 8 | E15: =F15&" x "&Translation!$A$12 -> 8 x pro Tag | F15: 8 | G15: =H15&" x "&Translation!$A$12 -> 8 x pro Tag | H15: 8 | I15: =J15&" x "&Translation!$A$12 -> 8 x pro Tag | J15: 8
A16: =B16&" x "&Translation!$A$11 -> 9 x pro Woche | B16: 9 | C16: =D16&" x "&Translation!$A$11 -> 9 x pro Woche | D16: 9 | E16: =F16&" x "&Translation!$A$12 -> 9 x pro Tag | F16: 9 | G16: =H16&" x "&Translation!$A$12 -> 9 x pro Tag | H16: 9 | I16: =J16&" x "&Translation!$A$12 -> 9 x pro Tag | J16: 9
A17: =B17&" x "&Translation!$A$11 -> 10 x pro Woche | B17: 10 | C17: =D17&" x "&Translation!$A$11 -> 10 x pro Woche | D17: 10 | E17: =F17&" x "&Translation!$A$12 -> 10 x pro Tag | F17: 10 | G17: =H17&" x "&Translation!$A$12 -> 10 x pro Tag | H17: 10 | I17: =J17&" x "&Translation!$A$12 -> 10 x pro Tag | J17: 10
A18: =B18&" x "&Translation!$A$11 -> 11 x pro Woche | B18: 11 | C18: =D18&" x "&Translation!$A$11 -> 11 x pro Woche | D18: 11 | E18: =F18&" x "&Translation!$A$12 -> 11 x pro Tag | F18: 11 | G18: =H18&" x "&Translation!$A$12 -> 11 x pro Tag | H18: 11 | I18: =J18&" x "&Translation!$A$12 -> 11 x pro Tag | J18: 11
A19: =B19&" x "&Translation!$A$11 -> 12 x pro Woche | B19: 12 | C19: =D19&" x "&Translation!$A$11 -> 12 x pro Woche | D19: 12 | E19: =F19&" x "&Translation!$A$12 -> 12 x pro Tag | F19: 12 | G19: =H19&" x "&Translation!$A$12 -> 12 x pro Tag | H19: 12 | I19: =J19&" x "&Translation!$A$12 -> 12 x pro Tag | J19: 12
A20: =B20&" x "&Translation!$A$11 -> 13 x pro Woche | B20: 13 | C20: =D20&" x "&Translation!$A$11 -> 13 x pro Woche | D20: 13 | E20: =F20&" x "&Translation!$A$12 -> 13 x pro Tag | F20: 13 | G20: =H20&" x "&Translation!$A$12 -> 13 x pro Tag | H20: 13 | I20: =J20&" x "&Translation!$A$12 -> 13 x pro Tag | J20: 13
A21: =B21&" x "&Translation!$A$11 -> 14 x pro Woche | B21: 14 | C21: =D21&" x "&Translation!$A$11 -> 14 x pro Woche | D21: 14 | E21: =F21&" x "&Translation!$A$12 -> 14 x pro Tag | F21: 14 | G21: =H21&" x "&Translation!$A$12 -> 14 x pro Tag | H21: 14 | I21: =J21&" x "&Translation!$A$12 -> 14 x pro Tag | J21: 14
A22: =B22&" x "&Translation!$A$11 -> 15 x pro Woche | B22: 15 | C22: =D22&" x "&Translation!$A$11 -> 15 x pro Woche | D22: 15 | E22: =F22&" x "&Translation!$A$12 -> 15 x pro Tag | F22: 15 | G22: =H22&" x "&Translation!$A$12 -> 15 x pro Tag | H22: 15 | I22: =J22&" x "&Translation!$A$12 -> 15 x pro Tag | J22: 15
A23: =B23&" x "&Translation!$A$11 -> 16 x pro Woche | B23: 16 | C23: =D23&" x "&Translation!$A$11 -> 16 x pro Woche | D23: 16 | E23: =F23&" x "&Translation!$A$12 -> 16 x pro Tag | F23: 16 | G23: =H23&" x "&Translation!$A$12 -> 16 x pro Tag | H23: 16 | I23: =J23&" x "&Translation!$A$12 -> 16 x pro Tag | J23: 16
A24: =B24&" x "&Translation!$A$11 -> 17 x pro Woche | B24: 17 | C24: =D24&" x "&Translation!$A$11 -> 17 x pro Woche | D24: 17 | E24: =F24&" x "&Translation!$A$12 -> 17 x pro Tag | F24: 17 | G24: =H24&" x "&Translation!$A$12 -> 17 x pro Tag | H24: 17 | I24: =J24&" x "&Translation!$A$12 -> 17 x pro Tag | J24: 17
A25: =B25&" x "&Translation!$A$11 -> 18 x pro Woche | B25: 18 | C25: =D25&" x "&Translation!$A$11 -> 18 x pro Woche | D25: 18 | E25: =F25&" x "&Translation!$A$12 -> 18 x pro Tag | F25: 18 | G25: =H25&" x "&Translation!$A$12 -> 18 x pro Tag | H25: 18 | I25: =J25&" x "&Translation!$A$12 -> 18 x pro Tag | J25: 18
A26: =B26&" x "&Translation!$A$11 -> 19 x pro Woche | B26: 19 | C26: =D26&" x "&Translation!$A$11 -> 19 x pro Woche | D26: 19 | E26: =F26&" x "&Translation!$A$12 -> 19 x pro Tag | F26: 19 | G26: =H26&" x "&Translation!$A$12 -> 19 x pro Tag | H26: 19 | I26: =J26&" x "&Translation!$A$12 -> 19 x pro Tag | J26: 19
A27: =B27&" x "&Translation!$A$11 -> 20 x pro Woche | B27: 20 | C27: =D27&" x "&Translation!$A$11 -> 20 x pro Woche | D27: 20 | E27: =F27&" x "&Translation!$A$12 -> 20 x pro Tag | F27: 20 | G27: =H27&" x "&Translation!$A$12 -> 20 x pro Tag | H27: 20 | I27: =J27&" x "&Translation!$A$12 -> 20 x pro Tag | J27: 20
A28: =B28&" x "&Translation!$A$11 -> 21 x pro Woche | B28: 21 | C28: =D28&" x "&Translation!$A$11 -> 21 x pro Woche | D28: 21 | E28: =F28&" x "&Translation!$A$12 -> 21 x pro Tag | F28: 21 | G28: =H28&" x "&Translation!$A$12 -> 21 x pro Tag | H28: 21 | I28: =J28&" x "&Translation!$A$12 -> 21 x pro Tag | J28: 21
A29: =B29&" x "&Translation!$A$11 -> 22 x pro Woche | B29: 22 | C29: =D29&" x "&Translation!$A$11 -> 22 x pro Woche | D29: 22 | E29: =F29&" x "&Translation!$A$12 -> 22 x pro Tag | F29: 22 | G29: =H29&" x "&Translation!$A$12 -> 22 x pro Tag | H29: 22 | I29: =J29&" x "&Translation!$A$12 -> 22 x pro Tag | J29: 22
A30: =B30&" x "&Translation!$A$11 -> 23 x pro Woche | B30: 23 | C30: =D30&" x "&Translation!$A$11 -> 23 x pro Woche | D30: 23 | E30: =F30&" x "&Translation!$A$12 -> 23 x pro Tag | F30: 23 | G30: =H30&" x "&Translation!$A$12 -> 23 x pro Tag | H30: 23 | I30: =J30&" x "&Translation!$A$12 -> 23 x pro Tag | J30: 23
A31: =B31&" x "&Translation!$A$11 -> 24 x pro Woche | B31: 24 | C31: =D31&" x "&Translation!$A$11 -> 24 x pro Woche | D31: 24 | E31: =F31&" x "&Translation!$A$12 -> 24 x pro Tag | F31: 24 | G31: =H31&" x "&Translation!$A$12 -> 24 x pro Tag | H31: 24 | I31: =J31&" x "&Translation!$A$12 -> 24 x pro Tag | J31: 24
A32: =B32&" x "&Translation!$A$11 -> 25 x pro Woche | B32: 25 | C32: =D32&" x "&Translation!$A$11 -> 25 x pro Woche | D32: 25 | E32: =F32&" x "&Translation!$A$12 -> 25 x pro Tag | F32: 25 | G32: =H32&" x "&Translation!$A$12 -> 25 x pro Tag | H32: 25 | I32: =J32&" x "&Translation!$A$12 -> 25 x pro Tag | J32: 25
A33: =B33&" x "&Translation!$A$11 -> 26 x pro Woche | B33: 26 | C33: =D33&" x "&Translation!$A$11 -> 26 x pro Woche | D33: 26 | E33: =F33&" x "&Translation!$A$12 -> 26 x pro Tag | F33: 26 | G33: =H33&" x "&Translation!$A$12 -> 26 x pro Tag | H33: 26 | I33: =J33&" x "&Translation!$A$12 -> 26 x pro Tag | J33: 26
A34: =B34&" x "&Translation!$A$11 -> 27 x pro Woche | B34: 27 | C34: =D34&" x "&Translation!$A$11 -> 27 x pro Woche | D34: 27 | E34: =F34&" x "&Translation!$A$12 -> 27 x pro Tag | F34: 27 | G34: =H34&" x "&Translation!$A$12 -> 27 x pro Tag | H34: 27 | I34: =J34&" x "&Translation!$A$12 -> 27 x pro Tag | J34: 27
A35: =B35&" x "&Translation!$A$11 -> 28 x pro Woche | B35: 28 | C35: =D35&" x "&Translation!$A$11 -> 28 x pro Woche | D35: 28 | E35: =F35&" x "&Translation!$A$12 -> 28 x pro Tag | F35: 28 | G35: =H35&" x "&Translation!$A$12 -> 28 x pro Tag | H35: 28 | I35: =J35&" x "&Translation!$A$12 -> 28 x pro Tag | J35: 28
A36: =B36&" x "&Translation!$A$11 -> 29 x pro Woche | B36: 29 | C36: =D36&" x "&Translation!$A$11 -> 29 x pro Woche | D36: 29 | E36: =F36&" x "&Translation!$A$12 -> 29 x pro Tag | F36: 29 | G36: =H36&" x "&Translation!$A$12 -> 29 x pro Tag | H36: 29 | I36: =J36&" x "&Translation!$A$12 -> 29 x pro Tag | J36: 29
A37: =B37&" x "&Translation!$A$11 -> 30 x pro Woche | B37: 30 | C37: =D37&" x "&Translation!$A$11 -> 30 x pro Woche | D37: 30 | E37: =F37&" x "&Translation!$A$12 -> 30 x pro Tag | F37: 30 | G37: =H37&" x "&Translation!$A$12 -> 30 x pro Tag | H37: 30 | I37: =J37&" x "&Translation!$A$12 -> 30 x pro Tag | J37: 30
A38: =B38&" x "&Translation!$A$11 -> 35 x pro Woche | B38: 35 | C38: =D38&" x "&Translation!$A$11 -> 35 x pro Woche | D38: 35
A39: =B39&" x "&Translation!$A$11 -> 40 x pro Woche | B39: 40 | C39: =D39&" x "&Translation!$A$11 -> 40 x pro Woche | D39: 40
A40: =B40&" x "&Translation!$A$11 -> 45 x pro Woche | B40: 45 | C40: =D40&" x "&Translation!$A$11 -> 45 x pro Woche | D40: 45
A41: =B41&" x "&Translation!$A$11 -> 50 x pro Woche | B41: 50 | C41: =D41&" x "&Translation!$A$11 -> 50 x pro Woche | D41: 50
A60: Rechenwerte | H60: Berechnung (Wärme)-Energiebedarf
A61: Typ WP | C61: WWK 220 electronic | H61: Entnahmestelle | J61: Volumen | O61: Temperatur | Q61: Energie
A62: JAZ WP | C62: =VLOOKUP($C$61,Leistungsdaten!$A:$M,2,FALSE) -> 3.96 | H62: Typ | J62: Frequenz | K62: Durchfluss | L62: Dauer | M62: Zeitraum | N62: Zapfmenge | O62: Kaltwasser | P62: Zapfung | Q62: Verteilverluste | R62: Pro Jahr
A63: Wärmeverlust WP | C63: =VLOOKUP($C$61,Leistungsdaten!$A:$M,3,FALSE) -> 0.648 | H63: - | J63: pro Woche | K63: l/min | L63: min/Zapfung | M63: Wochen/Jahr | N63: Liter/Jahr | O63: °C | P63: °C | Q63: % | R63: kWh/a
A64: Preis WP | C64: =ROUND(VLOOKUP($C$61,Leistungsdaten!$A:$M,4,FALSE),0) -> 2350 | H64: =Auslegung!C7 -> Badewanne | J64: =B5 -> 2 | K64: =Einstellungen!D29 -> 10 | L64: =Einstellungen!D31 -> 12 | M64: =Einstellungen!D10 -> 49 | N64: =J64*K64*L64*M64 -> 11760 | O64: =Einstellungen!D12 -> 10 | P64: =Einstellungen!D33 -> 40 | Q64: =Einstellungen!D20 -> 10 | R64: =(1+Q64/100)*(N64*1.163*(P64-O64)/1000) -> 451.33704
A65: Installation WP | C65: =VLOOKUP($C$61,Leistungsdaten!$A:$M,5,FALSE) -> 350 | H65: =Auslegung!C9 -> Dusche | J65: =D5 -> 15 | K65: =Einstellungen!D38 -> 8 | L65: =Einstellungen!D40 -> 6 | M65: =M64 -> 49 | N65: =J65*K65*L65*M65 -> 35280 | O65: =O64 -> 10 | P65: =Einstellungen!D42 -> 38 | Q65: =Q64 -> 10 | R65: =(1+Q65/100)*(N65*1.163*(P65-O65)/1000) -> 1263.743712
A66: PDF-DE WP | C66: =IF(VLOOKUP(C61,Leistungsdaten!A:L,12,FALSE)=0,FALSE,Translation!A3&TEXT(VLOOKUP(C61,Leistungsdaten!A:L,12,FALSE),"000000")) -> http://www.stiebel-eltron.de/services/productproxy.product.pdf?productnr=231208 | H66: =Auslegung!C11 -> Badwaschbecken | J66: =F5 -> 56 | K66: =Einstellungen!D47 -> 4 | L66: =Einstellungen!D49 -> 0.5 | M66: =M65 -> 49 | N66: 5488 | O66: =O65 -> 10 | P66: =Einstellungen!D51 -> 40 | Q66: =Q65 -> 10 | R66: =(1+Q66/100)*(N66*1.163*(P66-O66)/1000) -> 210.623952
A67: Speichertemperatur | C67: =VLOOKUP($C$61,Leistungsdaten!$A:$N,6,FALSE) -> 55 | H67: =Auslegung!C13 -> Küchenspüle | J67: =H5 -> 28 | K67: =Einstellungen!D56 -> 4 | L67: =Einstellungen!D58 -> 0.5 | M67: 49 | N67: 2744 | O67: 10 | P67: =Einstellungen!D60 -> 50 | Q67: 10 | R67: =(1+Q67/100)*(N67*1.163*(P67-O67)/1000) -> 140.415968
A68: Platzhalter | H68: =Auslegung!C15 -> Handwaschbecken | J68: =J5 -> 21 | K68: =Einstellungen!D65 -> 2 | L68: =Einstellungen!D67 -> 0.5 | M68: 49 | N68: 1029 | O68: 10 | P68: =Einstellungen!D69 -> 40 | Q68: 10 | R68: =(1+Q68/100)*(N68*1.163*(P68-O68)/1000) -> 39.491991
A69: Platzhalter
A70: Platzhalter
A71: Platzhalter
A72: Platzhalter
A73: Platzhalter
A74: Platzhalter
A75: Platzhalter
A76: Platzhalter
A77: Typ Speicher | C77: E-Speicher SHW 200 S | H77: Summe | K77: =MAX(J65*K65,J66*K66,J67*K67,J68*K68) -> 224 | N77: =SUM(N64:N76) -> 56301 | R77: =SUM(R64:R76) -> 2105.612663
A78: Speicher defekt? | C78: =R5 -> TRUE
A79: Wärmeverlust Speicher | C79: =(1-0.1*(65-C83)/5)*VLOOKUP($C$77,Leistungsdaten!$A:$M,3,FALSE) -> 1.12
A80: Preis Speicher | C80: =IF(C78=TRUE,ROUND(VLOOKUP($C$77,Leistungsdaten!$A:$M,4,FALSE),0),0) -> 1550
A81: Installation Speicher | C81: =IF(C78=TRUE,VLOOKUP($C$77,Leistungsdaten!$A:$M,5,FALSE),0) -> 350
A82: PDF-DE Speicher | C82: =IF(VLOOKUP(C77,Leistungsdaten!A:L,12,FALSE)=0,FALSE,Translation!A3&TEXT(VLOOKUP(C77,Leistungsdaten!A:L,12,FALSE),"000000")) -> http://www.stiebel-eltron.de/services/productproxy.product.pdf?productnr=182120
A83: Speichertemperatur | C83: =VLOOKUP($C$77,Leistungsdaten!$A:$N,6,FALSE) -> 55 | H83: http://www.stiebel-eltron.de/services/productproxy/ste/de/de.pdf?productnr=182120
A84: Energieträger für Vergleich | C84: =VLOOKUP($C$77,Leistungsdaten!$A:$M,7,FALSE) -> 1
A85: CO2-Vergleich | C85: =IF(C84=1,Einstellungen!D14,IF(C84=2,Einstellungen!D16,Einstellungen!D18)) -> 621
A86: E-Preis-Vergleich | C86: =IF(C84=1,Einstellungen!D74,IF(C84=2,Einstellungen!D76,Einstellungen!D78)) -> 28
A87: Wirkungsgrad WWB Vergleich | C87: =VLOOKUP($C$77,Leistungsdaten!$A:$M,2,FALSE) -> 0.95
A88: Preissteigerung Vergleich | C88: =IF(C84=1,Einstellungen!D80,Einstellungen!D82) -> 3
A90: WWK mit Solar ? | C90: =VLOOKUP($C$61,Leistungsdaten!$A:$M,7,FALSE) -> 1
H91: Berechnung Endenergiebedarf | Q91: Anzeige Ergebnisse
H92: Wert | J92: Wärmepumpe | L92: Speicher | Q92: Textbox | R92: Energiebedarf | S92: Energiekosten | T92: Amortisation | U92: Rendite | V92: Klimadaten
Q93: Wert 1 | R93: =Translation!$A$25&" "&$C$61&": "&FIXED(J97,0)&" "&Translation!$A$27 -> Strombedarf WWK 220 electronic: 626 kWh/Jahr | S93: =Translation!$A$19&" "&$C$61&": "&FIXED(J98,0)&" "&Translation!$A$34 -> Energiekosten WWK 220 electronic: 175 €/Jahr | T93: =Translation!A46&" "&C61&": "&Berechnung!J104& " "&Translation!A48 -> Amortisation WWK 220 electronic: 1,4 Jahre | U93: =Translation!A53&": "&FIXED(J103,1)&" %" -> Rendite des eingesetzten Kapitals: 14,0 %
A94: Versionsnummer | C94: =RIGHT(Auslegung!AE43,5) -> v1.09 | H94: Bereitschaftsverlust | J94: =Auslegung!H24*365 -> 236.52 | L94: =Auslegung!H37*365 -> 408.8 | N94: kWh/Jahr | Q94: Wert 2 | R94: =Translation!$A$28&": "&ROUND(Berechnung!J96,0)&" "&Translation!$A$27&" | "&Translation!$A$29&": "&ROUND(Berechnung!J100,1)&" "&Translation!$A$32&" | "&Translation!$A$30&": "&ROUND(Berechnung!J99,0)&" "&Translation!$A$31 -> Wärme: 2342 kWh/Jahr | Wasser: 56,3 m³/Jahr | CO2: 389 kg/Jahr | S94: =Translation!$A$35&": "&FIXED(Berechnung!J119,0)&" "&Translation!$A$36&" | "&Translation!A37&": "&FIXED(Berechnung!L119-Berechnung!J119,0)&" "&Translation!A36 -> Energiekosten in 10 Jahren: 2.011 € | Ersparnis in 10 Jahren: 6.485 € | T94: =Translation!A50&" "&C61&" "&FIXED(J101+J102,0)&": "&Translation!A36 &" | "&C77&": "&FIXED(L101+L102,0)&" "&Translation!A36 -> Einmalige Kosten WWK 220 electronic 2.700: € | E-Speicher SHW 200 S: 1.900 € | U94: =Translation!A55&": "&FIXED(Berechnung!J101+Berechnung!J102,0)&" "&Translation!A36&" | "&Translation!A56&": "&FIXED(L140/10,0)&" "&Translation!A34 -> Eingesetztes Kapital: 2.700 € | Mittlerer Ertrag: 648 €/Jahr
H95: Wärmeenergiebedarf | J95: =R77 -> 2105.612663 | L95: =R77 -> 2105.612663 | N95: kWh/Jahr | Q95: Wert 3 | R95: =IF(C84=1,Translation!A25,Translation!A67)&" "&$C$77&": "&ROUND(L97,0)&" "&Translation!$A$27 -> Strombedarf E-Speicher SHW 200 S: 2647 kWh/Jahr | S95: =Translation!$A$19&" "&$C$77&": "&ROUND(L98,0)&" "&Translation!$A$34 -> Energiekosten E-Speicher SHW 200 S: 741 €/Jahr | T95: =Translation!A49&": "&FIXED(Berechnung!J140,0)& " "&Translation!A36 -> Ertrag mit Wärmepumpe nach 10 Jahren: 5.685 € | U95: =Translation!A57&" "&C61&": "&FIXED(J106,0)&" "&Translation!A36 -> Kapitalertrag WWK 220 electronic: 5.510 €
H96: Gesamtenergiebedarf | J96: =J94+J95 -> 2342.132663 | L96: =L94+L95 -> 2514.412663 | N96: kWh/Jahr | Q96: Wert 4 | R96: =Translation!$A$28&": "&ROUND(Berechnung!L96,0)&" "&Translation!$A$27&" | "&Translation!$A$29&": "&ROUND(Berechnung!L100,1)&" "&Translation!$A$32&" | "&Translation!$A$30&": "&ROUND(Berechnung!L99,0)&" "&Translation!$A$31 -> Wärme: 2514 kWh/Jahr | Wasser: 56,3 m³/Jahr | CO2: 1644 kg/Jahr | S96: =Translation!$A$35&": "&FIXED(Berechnung!L119,0)&" "&Translation!$A$36 -> Energiekosten in 10 Jahren: 8.496 € | U96: =Translation!A58&": "&FIXED(J105,0)&" "&Translation!A36&" | "&Translation!A52&": "&FIXED(L140,0)&" "&Translation!A36 -> Entgangene Zinsen: 175 € | Energiekostenersparnis: 6.485 €
H97: Endenergiebedarf | J97: =J96*(Einstellungen!$D$22/100)+(J96*(100-Einstellungen!$D$22)/100)/Auslegung!H22+J173-J168 -> 626.4613426 | L97: =L96/C87+L173 -> 2646.750172 | N97: kWh/Jahr | Q97: Wert 5 | S97: =Translation!$A$73&": "&FIXED(Einstellungen!D74,1)&" "&Translation!A92&" | "&Translation!A82&": "&Einstellungen!D80&" "&Translation!A84 -> Strompreis: 28,0 Ct/kWh | Strompreissteigerung: 3 % pro Jahr | T97: =Translation!A51&": "&FIXED(J129,0)&" "&Translation!A36&" | "&Translation!A52&": "&FIXED(L140,0)&" "&Translation!A36 -> Mehrkosten einmalig: 800 € | Energiekostenersparnis: 6.485 € | U97: =Translation!A60&" | "&Translation!A61&" "&FIXED(Einstellungen!D24,1)&" "&Translation!A84 -> Betrachtungszeitraum 10 Jahre | Bank-Guthabenzinssatz 2,0 % pro Jahr
H98: Stromkosten | J98: =J97*Einstellungen!$D$74/100-J175 -> 175.4091759 | L98: =(L96/C87)*C86/100+L174 -> 741.090048 | N98: €/Jahr | Q98: Wert 6
H99: CO2-Emission | J99: =(J97+J173-J172-J171)*Einstellungen!$D$14/1000 -> 389.0324937 | L99: =(L96/C87)*C85/1000+L173*Einstellungen!$D$14/1000 -> 1643.631857 | N99: kg CO2 / Jahr | Q99: Wert 7
H100: Wasserverbrauch | J100: =N77/1000 -> 56.301 | L100: =N77/1000 -> 56.301 | N100: m³/Jahr | Q100: Wert 8
H101: Investitionskosten | J101: =Auslegung!H26 -> 2350 | L101: =Auslegung!H39 -> 1550 | N101: € | Q101: Wert 9
H102: Installationskosten | J102: =Auslegung!H28 -> 350 | L102: =Auslegung!H41 -> 350 | N102: € | Q102: Wert 10
H103: Verzinsung | J103: =100*(L140-(J101+J102))/(J101+J102)/10 -> 14.01813795 | N103: % pro Jahr | Q103: Legende 1 | R103: =$C$61 -> WWK 220 electronic | S103: =$C$61 -> WWK 220 electronic | T103: =Translation!A46 -> Amortisation | U103: =C61 -> WWK 220 electronic
H104: Amortisation | J104: =IF(ISERROR(-1*L144/J144),"> 10",FIXED(-1*L144/J144,1)) -> 1,4 | N104: Jahre | Q104: Legende 2 | R104: =$C$77 -> E-Speicher SHW 200 S | S104: =$C$77 -> E-Speicher SHW 200 S | U104: =Translation!A63 -> Geldanlage Bank
H105: Zinsen auf der Bank | J105: =J129*(1+Einstellungen!$D$24/100)^10-J129 -> 175.195536 | N105: € in 10 Jahren | Q105: Legende 3
H106: Kapitaltalertrag 10 Jahre | J106: =L161-J161 -> 5509.701711 | N106: € | Q106: Legende 4
Q107: Legende 5
H108: Energiekostenentwicklung | Q108: Legende 6
H109: 1 | J109: =J98 -> 175.4091759 | L109: =L98 -> 741.090048 | Q109: Legende 7
H110: 2 | J110: =J109*(1+Einstellungen!$D$80/100) -> 180.6714512 | L110: =L109*(1+$C$88/100) -> 763.3227495 | Q110: Legende 8
H111: 3 | J111: =J110*(1+Einstellungen!$D$80/100) -> 186.0915947 | L111: =L110*(1+$C$88/100) -> 786.222432 | Q111: Legende 9
H112: 4 | J112: =J111*(1+Einstellungen!$D$80/100) -> 191.6743426 | L112: 809.8091049 | Q112: Legende 10
H113: 5 | J113: =J112*(1+Einstellungen!$D$80/100) -> 197.4245729 | L113: 834.1033781 | Q113: Legende 11
H114: 6 | J114: =J113*(1+Einstellungen!$D$80/100) -> 203.34731 | L114: 859.1264794 | Q114: Legende 12
H115: 7 | J115: =J114*(1+Einstellungen!$D$80/100) -> 209.4477293 | L115: 884.9002738 | Q115: Legende 13
H116: 8 | J116: =J115*(1+Einstellungen!$D$80/100) -> 215.7311612 | L116: 911.447282 | Q116: Legende 14
H117: 9 | J117: =J116*(1+Einstellungen!$D$80/100) -> 222.2030961 | L117: 938.7907005 | Q117: Legende 15
H118: 10 | J118: =J117*(1+Einstellungen!$D$80/100) -> 228.8691889 | L118: 966.9544215
H119: Summe 10 Jahre | J119: =SUM(J109:K118) -> 2010.869623 | L119: =SUM(L109:M118) -> 8495.76687
H128: Amortisation | J128: Offenener Betrag | L128: Einsparung | N128: Amortisation ?
H129: 0 | J129: =IF(C78=TRUE,((J101+J102)-(L101+L102)),J101+J102) -> 800 | L129: 0 | N129: 0
H130: 1 | J130: =J129-L130 -> 234.3191279 | L130: =L109-J109 -> 565.6808721 | N130: =IF(AND(J129>0,J130<=0),H130,0) -> 0
H131: 2 | J131: =J130-L131 -> -348.3321704 | L131: =L110-J110 -> 582.6512983 | N131: =IF(AND(J130>0,J131<=0),H131,0) -> 2
H132: 3 | J132: =J131-L132 -> -948.4630076 | L132: 600.1308372 | N132: 0
H133: 4 | J133: -1566.59777 | L133: 618.1347623 | N133: 0
H134: 5 | J134: -2203.276575 | L134: 636.6788052 | N134: 0
H135: 6 | J135: -2859.055745 | L135: =L114-J114 -> 655.7791694 | N135: 0
H136: 7 | J136: =J135-L136 -> -3534.508289 | L136: 675.4525445 | N136: 0
H137: 8 | J137: -4230.22441 | L137: 695.7161208 | N137: 0
H138: 9 | J138: -4946.812014 | L138: 716.5876044 | N138: 0
H139: 10 | J139: -5684.897247 | L139: 738.0852325 | N139: 0
H140: Summe | J140: =-1*J139 -> 5684.897247 | L140: =SUM(L129:M139) -> 6484.897247 | N140: =MAX(N129:N139) -> 2
H143: Nebenrechnung | J143: m | L143: n
H144: (Nullpunktberechnung Amortisation) | J144: =VLOOKUP(N140,H129:K144,3,FALSE)-VLOOKUP(N140-1,H129:K144,3,FALSE) -> -582.6512983 | L144: =VLOOKUP(N140,H129:K144,3,FALSE)-J144*N140 -> 816.9704262
H150: Kapitalentwicklung | J150: Bank | L150: Wärmepumpe
H151: 0 | J151: =J129 -> 800 | L151: 0
H152: 1 | J152: =J151+J151*Einstellungen!$D$24/100 -> 816 | L152: =L151+L130 -> 565.6808721
H153: 2 | J153: =J152+J152*Einstellungen!$D$24/100 -> 832.32 | L153: =L152+L131 -> 1148.33217
H154: 3 | J154: =J153+J153*Einstellungen!$D$24/100 -> 848.9664 | L154: =L153+L132 -> 1748.463008
H155: 4 | J155: =J154+J154*Einstellungen!$D$24/100 -> 865.945728 | L155: 2366.59777
H156: 5 | J156: =J155+J155*Einstellungen!$D$24/100 -> 883.2646426 | L156: 3003.276575
H157: 6 | J157: =J156+J156*Einstellungen!$D$24/100 -> 900.9299354 | L157: 3659.055745
H158: 7 | J158: =J157+J157*Einstellungen!$D$24/100 -> 918.9485341 | L158: 4334.508289
H159: 8 | J159: =J158+J158*Einstellungen!$D$24/100 -> 937.3275048 | L159: 5030.22441
H160: 9 | J160: =J159+J159*Einstellungen!$D$24/100 -> 956.0740549 | L160: 5746.812014
H161: 10 | J161: =J160+J160*Einstellungen!$D$24/100 -> 975.195536 | L161: 6484.897247
H164: PV-Strom
H166: Mit PV rechnen ? | J166: =IF(C90=4,TRUE,FALSE) -> FALSE | L166: =J166 -> FALSE
H167: Solarertrag | J167: =VLOOKUP(C61,Leistungsdaten!A:H,8,FALSE)*Einstellungen!D87 -> 0 | L167: 0 | N167: kWh/Jahr
H168: Eigenverbrauch | J168: =Einstellungen!$D$89/100*J167 -> 0 | L168: 0 | N168: kWh/Jahr
H169: Einspeisung | J169: =J167-J168 -> 0 | L169: 0 | N169: kWh/Jahr
H170: Anteil WWK am Eigenverbrauch | J170: 0.33 | L170: 0 | N170: Eingabe
H171: Eigenverbrauch WWK | J171: =J170*J168 -> 0 | L171: 0 | N171: kWh/Jahr
H172: Eigenverbrauch Haushalt | J172: =J168-J171 -> 0 | L172: 0 | N172: kWh/Jahr
H173: Haushaltstrom | J173: =IF(J166=FALSE,0,Einstellungen!D91) -> 0 | L173: =J173 -> 0 | N173: kWh/Jahr
H174: Stromkosten Haushalt | J174: =IF(J166=FALSE,0,MAX(0,(J173-J172)*Einstellungen!$D$74/100)) -> 0 | L174: =IF(L166=FALSE,0,L173*Einstellungen!$D$74/100) -> 0 | N174: €/Jahr
H175: Einspeisevergütung | J175: =IF(J166=FALSE,0,J169*Einstellungen!$D$93/100) -> 0 | L175: 0 | N175: €/Jahr
H176: Eigenverbrauch WWK | J176: =IF(J166=FALSE,0,J171*Einstellungen!$D$93/100) -> 0 | L176: 0 | N176: €/Jahr

Sheet Leistungsdaten (hidden)
N1: Gerät anzeigen?
A2: WP-Typ | B2: JAZ | C2: Wärmeverlust | D2: Preis (netto) | E2: Installation | F2: Speichertemp | G2: E-Träger | H2: Kwpeak | J2: Nr. STE | K2: Nr. TEC | L2: Nr. gewählt | N2: Deutsch | O2: English Int | P2: English UK | Q2: Holländisch | R2: Französisch | S2: Slovakisch | T2: tecalor | U2: Platzhalter | V2: Platzhalter | W2: Platzhalter | X2: Platzhalter | Y2: Platzhalter | Z2: Platzhalter | AA2: Platzhalter | AB2: Platzhalter | AC2: Platzhalter | AD2: Name STE | AE2: Name Tec
A3: =IF(Berechnung!$K$5=7,AE3,AD3) -> WWK 220 electronic | B3: 3.96 | C3: 0.648 | D3: 2350 | E3: 350 | F3: 55 | G3: 1 | H3: 0 | J3: 231208 | K3: 190385 | L3: =IF(Berechnung!$K$5=7,K3,J3) -> 231208 | N3: TRUE | O3: TRUE | P3: FALSE | Q3: TRUE | R3: TRUE | S3: TRUE | T3: TRUE | U3: TRUE | V3: TRUE | W3: TRUE | X3: TRUE | Y3: TRUE | Z3: TRUE | AA3: TRUE | AB3: TRUE | AC3: TRUE | AD3: WWK 220 electronic | AE3: TTA 220 electronic
A4: =IF(Berechnung!$K$5=7,AE4,AD4) -> WWK 300 electronic | B4: 3.86 | C4: 0.672 | D4: 2450 | E4: 350 | F4: 55 | G4: 1 | H4: 0 | J4: 231210 | K4: 190386 | L4: =IF(Berechnung!$K$5=7,K4,J4) -> 231210 | N4: TRUE | O4: TRUE | P4: FALSE | Q4: TRUE | R4: TRUE | S4: TRUE | T4: TRUE | U4: TRUE | V4: TRUE | W4: TRUE | X4: TRUE | Y4: TRUE | Z4: TRUE | AA4: TRUE | AB4: TRUE | AC4: TRUE | AD4: WWK 300 electronic | AE4: TTA 300 electronic
A5: =IF(Berechnung!$K$5=7,AE5,AD5) -> WWK 300 electronic SOL | B5: 3.92 | C5: 0.768 | D5: 2550 | E5: 350 | F5: 55 | G5: 1 | H5: 0 | J5: 233583 | K5: 190387 | L5: =IF(Berechnung!$K$5=7,K5,J5) -> 233583 | N5: TRUE | O5: TRUE | P5: FALSE | Q5: TRUE | R5: TRUE | S5: TRUE | T5: TRUE | U5: TRUE | V5: TRUE | W5: TRUE | X5: TRUE | Y5: TRUE | Z5: TRUE | AA5: TRUE | AB5: TRUE | AC5: TRUE | AD5: WWK 300 electronic SOL | AE5: TTA 300 electronic SOL
A6: =IF(Berechnung!$K$5=7,AE6,AD6) -> WWK 221 electronic | B6: 3.79 | C6: 0.504 | D6: 2650 | E6: 350 | F6: 55 | G6: 1 | H6: 0 | J6: 230949 | K6: 190455 | L6: =IF(Berechnung!$K$5=7,K6,J6) -> 230949 | N6: TRUE | O6: TRUE | P6: FALSE | Q6: TRUE | R6: TRUE | S6: TRUE | T6: TRUE | U6: TRUE | V6: TRUE | W6: TRUE | X6: TRUE | Y6: TRUE | Z6: TRUE | AA6: TRUE | AB6: TRUE | AC6: TRUE | AD6: WWK 221 electronic | AE6: TTA 221 electronic
A7: =IF(Berechnung!$K$5=7,AE7,AD7) -> WWK 301 electronic | B7: 3.64 | C7: 0.552 | D7: 2750 | E7: 350 | F7: 55 | G7: 1 | H7: 0 | J7: 230950 | K7: 190456 | L7: =IF(Berechnung!$K$5=7,K7,J7) -> 230950 | N7: TRUE | O7: TRUE | P7: FALSE | Q7: TRUE | R7: TRUE | S7: TRUE | T7: TRUE | U7: TRUE | V7: TRUE | W7: TRUE | X7: TRUE | Y7: TRUE | Z7: TRUE | AA7: TRUE | AB7: TRUE | AC7: TRUE | AD7: WWK 301 electronic | AE7: TTA 301 electronic
A8: =IF(Berechnung!$K$5=7,AE8,AD8) -> WWK 301 electronic SOL | B8: 3.67 | C8: 0.648 | D8: 2850 | E8: 350 | F8: 55 | G8: 1 | H8: 0 | J8: 233584 | K8: 190457 | L8: =IF(Berechnung!$K$5=7,K8,J8) -> 233584 | N8: TRUE | O8: TRUE | P8: FALSE | Q8: TRUE | R8: TRUE | S8: TRUE | T8: TRUE | U8: TRUE | V8: TRUE | W8: TRUE | X8: TRUE | Y8: TRUE | Z8: TRUE | AA8: TRUE | AB8: TRUE | AC8: TRUE | AD8: WWK 301 electronic SOL | AE8: TTA 301 electronic SOL
A9: =IF(Berechnung!$K$5=7,AE9,AD9) -> WWS 20 | B9: 3.85 | C9: 2.4 | D9: 3600 | E9: 350 | F9: 55 | G9: 1 | H9: 0 | J9: 233898 | L9: =IF(Berechnung!$K$5=7,K9,J9) -> 233898 | N9: TRUE | O9: TRUE | P9: FALSE | Q9: TRUE | R9: TRUE | S9: TRUE | T9: FALSE | U9: TRUE | V9: TRUE | W9: TRUE | X9: TRUE | Y9: TRUE | Z9: TRUE | AA9: TRUE | AB9: TRUE | AC9: TRUE | AD9: WWS 20 | AE9: WWS 20
A10: =IF(Berechnung!$K$5=7,AE10,AD10) -> WWK 300 A | B10: 3.19 | C10: 1.24 | D10: 2850 | E10: 350 | F10: 55 | G10: 1 | H10: 0 | J10: 222422 | L10: =IF(Berechnung!$K$5=7,K10,J10) -> 222422 | N10: FALSE | O10: TRUE | P10: TRUE | Q10: FALSE | R10: FALSE | S10: FALSE | T10: FALSE | U10: TRUE | V10: TRUE | W10: TRUE | X10: TRUE | Y10: TRUE | Z10: TRUE | AA10: TRUE | AB10: TRUE | AC10: TRUE | AD10: WWK 300 A | AE10: TTA 300 A
A11: =IF(Berechnung!$K$5=7,AE11,AD11) -> WWK 300 AP | B11: 3.19 | C11: 1.24 | D11: 2850 | E11: 350 | F11: 55 | G11: 1 | H11: 0 | J11: 222422 | L11: =IF(Berechnung!$K$5=7,K11,J11) -> 222422 | N11: FALSE | O11: TRUE | P11: FALSE | Q11: FALSE | R11: FALSE | S11: FALSE | T11: FALSE | U11: TRUE | V11: TRUE | W11: TRUE | X11: TRUE | Y11: TRUE | Z11: TRUE | AA11: TRUE | AB11: TRUE | AC11: TRUE | AD11: WWK 300 AP | AE11: TTA 300 AP
A12: =IF(Berechnung!$K$5=7,AE12,AD12) -> WWK 300 AH | B12: 3.19 | C12: 1.24 | D12: 3000 | E12: 350 | F12: 55 | G12: 1 | H12: 0 | J12: 227070 | L12: =IF(Berechnung!$K$5=7,K12,J12) -> 227070 | N12: FALSE | O12: TRUE | P12: TRUE | Q12: FALSE | R12: FALSE | S12: FALSE | T12: FALSE | U12: TRUE | V12: TRUE | W12: TRUE | X12: TRUE | Y12: TRUE | Z12: TRUE | AA12: TRUE | AB12: TRUE | AC12: TRUE | AD12: WWK 300 AH | AE12: TTA 300 AH
A13: =IF(Berechnung!$K$5=7,AE13,AD13) -> WWK 300 AHP | B13: 3.19 | C13: 1.24 | D13: 3000 | E13: 350 | F13: 55 | G13: 1 | H13: 0 | J13: 227070 | L13: =IF(Berechnung!$K$5=7,K13,J13) -> 227070 | N13: FALSE | O13: TRUE | P13: FALSE | Q13: FALSE | R13: FALSE | S13: FALSE | T13: FALSE | U13: TRUE | V13: TRUE | W13: TRUE | X13: TRUE | Y13: TRUE | Z13: TRUE | AA13: TRUE | AB13: TRUE | AC13: TRUE | AD13: WWK 300 AHP | AE13: TTA 300 AHP
A14: =IF(Berechnung!$K$5=7,AE14,AD14) -> WWK 300 GP | B14: 3.19 | C14: 1.25 | D14: 2700 | E14: 350 | F14: 55 | G14: 1 | H14: 0 | J14: 227072 | L14: =IF(Berechnung!$K$5=7,K14,J14) -> 227072 | N14: FALSE | O14: TRUE | P14: FALSE | Q14: FALSE | R14: FALSE | S14: FALSE | T14: FALSE | U14: TRUE | V14: TRUE | W14: TRUE | X14: TRUE | Y14: TRUE | Z14: TRUE | AA14: TRUE | AB14: TRUE | AC14: TRUE | AD14: WWK 300 GP | AE14: TTA 300 GP
A15: =IF(Berechnung!$K$5=7,AE15,AD15) -> TEGREON 1201 WWK | B15: 4.1 | C15: 0.96 | D15: 7950 | E15: 2000 | F15: 55 | G15: 4 | H15: 3.06 | J15: 273310 | L15: =IF(Berechnung!$K$5=7,K15,J15) -> 273310 | N15: TRUE | O15: TRUE | P15: FALSE | Q15: FALSE | R15: FALSE | S15: TRUE | T15: FALSE | U15: TRUE | V15: TRUE | W15: TRUE | X15: TRUE | Y15: TRUE | Z15: TRUE | AA15: TRUE | AB15: TRUE | AC15: TRUE | AD15: TEGREON 1201 WWK | AE15: TEGREON 1201 TTA
A16: =IF(Berechnung!$K$5=7,AE16,AD16) -> TEGREON 1202 WWK | B16: 4.1 | C16: 0.96 | D16: 8050 | E16: 2000 | F16: 55 | G16: 4 | H16: 3.06 | J16: 273311 | L16: =IF(Berechnung!$K$5=7,K16,J16) -> 273311 | N16: TRUE | O16: TRUE | P16: FALSE | Q16: FALSE | R16: FALSE | S16: TRUE | T16: FALSE | U16: TRUE | V16: TRUE | W16: TRUE | X16: TRUE | Y16: TRUE | Z16: TRUE | AA16: TRUE | AB16: TRUE | AC16: TRUE | AD16: TEGREON 1202 WWK | AE16: TEGREON 1202 TTA
A17: =IF(Berechnung!$K$5=7,AE17,AD17) -> TEGREON 1601 WWK | B17: 4.1 | C17: 0.96 | D17: 9500 | E17: 2000 | F17: 55 | G17: 4 | H17: 4.08 | J17: 273312 | L17: =IF(Berechnung!$K$5=7,K17,J17) -> 273312 | N17: TRUE | O17: TRUE | P17: FALSE | Q17: FALSE | R17: FALSE | S17: TRUE | T17: FALSE | U17: TRUE | V17: TRUE | W17: TRUE | X17: TRUE | Y17: TRUE | Z17: TRUE | AA17: TRUE | AB17: TRUE | AC17: TRUE | AD17: TEGREON 1601 WWK | AE17: TEGREON 1601 TTA
A18: =IF(Berechnung!$K$5=7,AE18,AD18) -> TEGREON 1602 WWK | B18: 4.1 | C18: 0.96 | D18: 9600 | E18: 2000 | F18: 55 | G18: 4 | H18: 4.08 | J18: 273313 | L18: =IF(Berechnung!$K$5=7,K18,J18) -> 273313 | N18: TRUE | O18: TRUE | P18: FALSE | Q18: FALSE | R18: FALSE | S18: TRUE | T18: FALSE | U18: TRUE | V18: TRUE | W18: TRUE | X18: TRUE | Y18: TRUE | Z18: TRUE | AA18: TRUE | AB18: TRUE | AC18: TRUE | AD18: TEGREON 1602 WWK | AE18: TEGREON 1602 TTA
A19: =IF(Berechnung!$K$5=7,AE19,AD19) -> TEGREON 2001 WWK | B19: 4.1 | C19: 0.96 | D19: 11200 | E19: 2000 | F19: 55 | G19: 4 | H19: 5.1 | J19: 273314 | L19: =IF(Berechnung!$K$5=7,K19,J19) -> 273314 | N19: TRUE | O19: TRUE | P19: FALSE | Q19: FALSE | R19: FALSE | S19: TRUE | T19: FALSE | U19: TRUE | V19: TRUE | W19: TRUE | X19: TRUE | Y19: TRUE | Z19: TRUE | AA19: TRUE | AB19: TRUE | AC19: TRUE | AD19: TEGREON 2001 WWK | AE19: TEGREON 2001 TTA
A20: =IF(Berechnung!$K$5=7,AE20,AD20) -> TEGREON 2002 WWK | B20: 4.1 | C20: 0.96 | D20: 11300 | E20: 2000 | F20: 55 | G20: 4 | H20: 5.1 | J20: 273315 | L20: =IF(Berechnung!$K$5=7,K20,J20) -> 273315 | N20: TRUE | O20: TRUE | P20: FALSE | Q20: FALSE | R20: FALSE | S20: TRUE | T20: FALSE | U20: TRUE | V20: TRUE | W20: TRUE | X20: TRUE | Y20: TRUE | Z20: TRUE | AA20: TRUE | AB20: TRUE | AC20: TRUE | AD20: TEGREON 2002 WWK | AE20: TEGREON 2002 TTA
A49: Vergleichssystem | B49: Wirkungsgrad | C49: Wärmeverlust | D49: Preis (netto) | E49: Installation | F49: Speichertemp | H49: Kwpeak | J49: Nr. STE | K49: Nr. TEC | L49: Nr. gewählt
A50: =Translation!$A$66&" "&"SHW 200 S" -> E-Speicher SHW 200 S | B50: 0.95 | C50: 1.4 | D50: 1550 | E50: 350 | F50: 55 | G50: 1 | H50: 0 | J50: 182120 | L50: =IF(Berechnung!$K$5=7,K50,J50) -> 182120
A51: =Translation!$A$66&" "&"SHW 300 S" -> E-Speicher SHW 300 S | B51: 0.95 | C51: 1.8 | D51: 1700 | E51: 350 | F51: 55 | G51: 1 | H51: 0 | J51: 182121 | L51: =IF(Berechnung!$K$5=7,K51,J51) -> 182121
A52: =Translation!$A$66&" "&"SHW 400 S" -> E-Speicher SHW 400 S | B52: 0.95 | C52: 2.1 | D52: 2100 | E52: 350 | F52: 55 | G52: 1 | H52: 0 | J52: 182122 | L52: =IF(Berechnung!$K$5=7,K52,J52) -> 182122
A53: =Translation!$A$66&" "&"HSTP 200" -> E-Speicher HSTP 200 | B53: 0.95 | C53: 1.9 | D53: 1350 | E53: 350 | F53: 55 | G53: 1 | H53: 0 | J53: 71264 | L53: =IF(Berechnung!$K$5=7,K53,J53) -> 71264
A54: =Translation!$A$66&" "&"HSTP 300" -> E-Speicher HSTP 300 | B54: 0.95 | C54: 2.3 | D54: 1500 | E54: 350 | F54: 55 | G54: 1 | H54: 0 | J54: 71267 | L54: =IF(Berechnung!$K$5=7,K54,J54) -> 71267
A55: =Translation!$A$66&" "&"HSTP 400" -> E-Speicher HSTP 400 | B55: 0.95 | C55: 2.6 | D55: 1800 | E55: 350 | F55: 55 | G55: 1 | H55: 0 | J55: 71270 | L55: =IF(Berechnung!$K$5=7,K55,J55) -> 71270
A56: =Translation!$A$66&" "&"50 L" -> E-Speicher 50 L | B56: 0.95 | C56: 1.5 | D56: 800 | E56: 350 | F56: 55 | G56: 1 | H56: 0
A57: =Translation!$A$66&" "&"100 L" -> E-Speicher 100 L | B57: 0.95 | C57: 1.6 | D57: 1000 | E57: 350 | F57: 55 | G57: 1 | H57: 0
A58: =Translation!$A$66&" "&"150 L" -> E-Speicher 150 L | B58: 0.95 | C58: 1.8 | D58: 1200 | E58: 350 | F58: 55 | G58: 1 | H58: 0
A59: =Translation!$A$66&" "&"200 L" -> E-Speicher 200 L | B59: 0.95 | C59: 2 | D59: 1300 | E59: 350 | F59: 55 | G59: 1 | H59: 0
A60: =Translation!$A$66&" "&"250 L" -> E-Speicher 250 L | B60: 0.95 | C60: 2.3 | D60: 1400 | E60: 350 | F60: 55 | G60: 1 | H60: 0
A61: =Translation!$A$66&" "&"300 L" -> E-Speicher 300 L | B61: 0.95 | C61: 2.5 | D61: 1500 | E61: 350 | F61: 55 | G61: 1 | H61: 0
A62: =Translation!A64 -> Ölkessel + Speicher | B62: 0.85 | C62: 2 | D62: 1000 | E62: 350 | F62: 75 | G62: 2 | H62: 0
A63: =Translation!A65 -> Gaskessel + Speicher | B63: 0.85 | C63: 2 | D63: 1000 | E63: 350 | F63: 75 | G63: 3 | H63: 0

Sheet Translation (hidden)
A1: >>> Bei neuer Sprache im Blatt Leistungsdaten die WWKs wählen, die für die Sprache angezeigt werden sollen | B1: >>> Bei neuer Sprache im Blatt Leistungsdaten die WWKs wählen, die für die Sprache angezeigt werden sollen | H1: >>> Bei neuer Sprache im Blatt Leistungsdaten die WWKs wählen, die für die Sprache angezeigt werden sollen
A2: Deutsch | B2: Deutsch | C2: English International | D2: English UK | E2: Holländisch | F2: Französisch | G2: Slovakisch | H2: Tecalor
A3: http://www.stiebel-eltron.de/services/productproxy.product.pdf?productnr= | B3: http://www.stiebel-eltron.de/services/productproxy.product.pdf?productnr= | C3: http://www.stiebel-eltron.com/services/productproxy.product.pdf?productnr= | D3: http://www.stiebel-eltron.co.uk/services/productproxy.product.pdf?productnr= | E3: http://www.stiebel-eltron.nl/services/productproxy.product.pdf?productnr= | F3: http://www.stiebel-eltron.fr/services/productproxy.product.pdf?productnr= | G3: http://www.stiebel-eltron.sk/services/productproxy.product.pdf?productnr= | H3: http://www.tecalor.de/services/productproxy.product.pdf?productnr=
A4: WWK-Renditerechner | B4: WWK-Renditerechner | C4: WWK vs Hot water cylinders | D4: WWK vs Hot water cylinders | E4: WWK vs. staande boiler | F4: WWK vs. chauffe-eau sur socle | G4: Výpočet rendity WWK | H4: TTA-Renditerechner
A5: Bitte wählen Sie Entnahmestellen und Nutzungshäufigkeit | B5: Bitte wählen Sie Entnahmestellen und Nutzungshäufigkeit | C5: Please select your draw-off point and frequency of use. | D5: Please select your draw-off point and frequency of use. | E5: Geef aub voor alle aftappunten het verbruik in | F5: Introduisez la consommation pour chaque point de soutirage | G5: Prosím zvoľte odberné miesta a frekvenciu užívania | H5: Bitte wählen Sie Entnahmestellen und Nutzungshäufigkeit
A6: Badewanne | B6: Badewanne | C6: Bath tub | D6: Bath tub | E6: Badkuip | F6: Baignoire | G6: Vaňa | H6: Badewanne
A7: Dusche | B7: Dusche | C7: Shower | D7: Shower | E7: Douche | F7: Douche | G7: Sprcha | H7: Dusche
A8: Badwaschbecken | B8: Badwaschbecken | C8: Basin | D8: Basin | E8: Wastafel badkamer | F8: Évier salle de bains | G8: Umývadlo | H8: Badwaschbecken
A9: Küchenspüle | B9: Küchenspüle | C9: Kitchen sink | D9: Kitchen sink | E9: Spoeltafel keuken | F9: Évier cuisine | G9: Kuchynská výlevka | H9: Küchenspüle
A10: Handwaschbecken | B10: Handwaschbecken | C10: Handwash sink | D10: Handwash sink | E10: Handwastafel | F10: Lavabo | G10: Umývadlo na ruky | H10: Handwaschbecken
A11: pro Woche | B11: pro Woche | C11: per week | D11: per week | E11: per week | F11: par semaine | G11: Za týždeň | H11: pro Woche
A12: pro Tag | B12: pro Tag | C12: per day | D12: per day | E12: per dag | F12: par jour | G12: Za deň | H12: pro Tag
A13: Keine Badewanne | B13: Keine Badewanne | C13: No bath tub | D13: No bath tub | E13: Geen badkuip | F13: Pas de baignoire | G13: Bez vane | H13: Keine Badewanne
A14: Keine Dusche | B14: Keine Dusche | C14: No shower | D14: No shower | E14: Geen douche | F14: Pas de douche | G14: Bez sprchy | H14: Keine Dusche
A15: Kein Waschbecken | B15: Kein Waschbecken | C15: No basin | D15: No basin | E15: Geen wastafel | F15: Pas d'évier | G15: Bez umývadla | H15: Kein Waschbecken
A16: Keine Küchenspüle | B16: Keine Küchenspüle | C16: No kitchen sink | D16: No kitchen sink | E16: Geen spoeltafel | F16: Pas d'évier de cuisine | G16: Bez kuchynskej výlevky | H16: Keine Küchenspüle
A17: Kein Waschbecken | B17: Kein Waschbecken | C17: No handw. sink | D17: No handw. sink | E17: Geen wastafel | F17: Pas d'évier | G17: Bez umývadla | H17: Kein Waschbecken
A18: Energiebedarf | B18: Energiebedarf | C18: Energy demand | D18: Energy demand | E18: Energieverbruik | F18: Consommation énergétique | G18: Spotreba energie | H18: Energiebedarf
A19: Energiekosten | B19: Energiekosten | C19: Energy costs | D19: Energy costs | E19: Energiekosten | F19: Coûts énergétiques | G19: Náklady na energiu | H19: Energiekosten
A20: Bitte wählen Sie die Warmwasser-Wärmepumpe | B20: Bitte wählen Sie die Warmwasser-Wärmepumpe | C20: Please select the DHW heat pump | D20: Please select the DHW heat pump | E20: Kies aub een warmtepompboiler | F20: Choisissez un chauffe-eau thermodynamique svp | G20: Prosím zvoľte tepelné čerpadlo pre ohrev vody | H20: Bitte wählen Sie die Warmwasser-Wärmepumpe
A21: Wie erzeugen Sie aktuell Ihr Warmwasser ? | B21: Wie erzeugen Sie aktuell Ihr Warmwasser ? | C21: How do you actually generate your hot water? | D21: How do you actually generate your hot water? | E21: Hoe bereidt u nu uw warm water? | F21: Comment préparez-vous votre eau chaude pour l'instant ? | G21: Ako získavate v súčasnosti teplú vodu? | H21: Wie erzeugen Sie aktuell Ihr Warmwasser ?
A22: Speicher defekt ? | B22: Speicher defekt ? | C22: DHW cylinder is broken? | D22: DHW cylinder is broken? | E22: Boiler defect? | F22: Chauffe-eau défectueux ? | G22: Pokazený ohrievač vody? | H22: Speicher defekt ?
A23: Austausch ist erforderlich | B23: Austausch ist erforderlich | C23: Replacement is required | D23: Replacement is required | E23: Vervanging is noodzakelijk | F23: Remplacement nécessaire | G23: Nutná výmena | H23: Austausch ist erforderlich
A24: Austausch nicht erforderlich | B24: Austausch nicht erforderlich | C24: Replacement is not required | D24: Replacement is not required | E24: Vervanging is niet noodzakelijk | F24: Remplacement pas nécessaire | G24: Výmena nie je nutná | H24: Austausch nicht erforderlich
A25: Strombedarf | B25: Strombedarf | C25: Electricity requirement | D25: Electricity requirement | E25: Stroomverbruik | F25: Consommation énergétique | G25: Spotreba elektriny | H25: Strombedarf
A26: Strombedarf [kWh/Jahr] | B26: Strombedarf [kWh/Jahr] | C26: Electricity requirement [kWh/year] | D26: Electricity requirement [kWh/year] | E26: Stroomverbruik [kWh/jaar] | F26: Consommation énergétique (kWh/an) | G26: Spotreba elektriny [kWh/rok] | H26: Strombedarf [kWh/Jahr]
A27: kWh/Jahr | B27: kWh/Jahr | C27: kWh/year | D27: kWh/year | E27: kWh/jaar | F27: kWh/an | G27: kWh/rok | H27: kWh/Jahr
A28: Wärme | B28: Wärme | C28: Heat | D28: Heat | E28: Warmte | F28: Chaleur | G28: Teplo | H28: Wärme
A29: Wasser | B29: Wasser | C29: Water | D29: Water | E29: Water | F29: Eau | G29: Voda | H29: Wasser
A30: CO2 | B30: CO2 | C30: CO2 | D30: CO2 | E30: CO2 | F30: CO2 | G30: CO2 | H30: CO2
A31: kg/Jahr | B31: kg/Jahr | C31: kg/year | D31: kg/year | E31: kg/jaar | F31: kg/an | G31: kg/rok | H31: kg/Jahr
A32: m³/Jahr | B32: m³/Jahr | C32: m³/year | D32: m³/year | E32: m³/jaar | F32: m²/an | G32: m³/ rok | H32: m³/Jahr
A33: Energiekosten [€/a] | B33: Energiekosten [€/a] | C33: Energy costs [€/a] | D33: Energy costs [£/a] | E33: Energiekosten [€/jaar] | F33: Coûts énergétiques [€/an] | G33: Náklady na energiu [€/a] | H33: Energiekosten [€/a]
A34: €/Jahr | B34: €/Jahr | C34: €/year | D34: £/year | E34: €/jaar | F34: €/an | G34: €/rok | H34: €/Jahr
A35: Energiekosten in 10 Jahren | B35: Energiekosten in 10 Jahren | C35: Energy costs in 10 Years | D35: Energy costs in 10 Years | E35: Energiekosten op 10 jaar | F35: Coûts énergétiques sur 10 ans | G35: Náklady na energiu za 10 rokov | H35: Energiekosten in 10 Jahren
A36: € | B36: € | C36: € | D36: £ | E36: € | F36: € | G36: € | H36: €
A37: Ersparnis in 10 Jahren | B37: Ersparnis in 10 Jahren | C37: Savings resulting in 10 Years | D37: Savings resulting in 10 Years | E37: Besparing op 10 jaar | F37: Économie sur 10 ans | G37: Úspora za 10 rokov | H37: Ersparnis in 10 Jahren
A38: Einsatz des Berechnungstools ausschließlich zur Bestimmung der Wirtschaftlichkeit von Warmwasser-Wärmepumpen. Es ersetzt nicht die Auslegung der erforderlichen Speichergröße von Wärmepumpe und Standspeicher. | B38: Einsatz des Berechnungstools ausschließlich zur Bestimmung der Wirtschaftlichkeit von Warmwasser-Wärmepumpen. Es ersetzt nicht die Auslegung der erforderlichen Speichergröße von Wärmepumpe und Standspeicher. | C38: The use of the calculation tool is exclusiv for determining the economy of DHW heat pumps. It does not replace the design of the required size of heat pump and hot water cylinders. | D38: The use of the calculation tool is exclusiv for determining the economy of DHW heat pumps. It does not replace the design of the required size of heat pump and hot water cylinders. | E38: Deze tool berekent uitsluitend de rentabiliteit van warmtepompboilers. Hij geeft geen indicatie over de nodige grootte van de warmtepomp en boiler. | F38: Cet outil calcule uniquement la rentabilité des chauffe-eaux thermodynamiques. Il ne donne aucune indication sur la capacité nécessaire de la pompe à chaleur et du chauffe-eau. | G38: Využitie pomôcok na prepočet výlučne pre určenie hospodárnosti tepelných čerpadiel pre ohrev vody. Nenahrádzaprojekčný návrh požadovanej veľkosti ohrievača tepelného čerpadla a stacionárneho ohrievača | H38: Einsatz des Berechnungstools ausschließlich zur Bestimmung der Wirtschaftlichkeit von Warmwasser-Wärmepumpen. Es ersetzt nicht die Auslegung der erforderlichen Speichergröße von Wärmepumpe und Standspeicher.
A39: Jahr | B39: Jahr | C39: Year | D39: Year | E39: Jaar | F39: An | G39: Rok | H39: Jahr
A40: Typ Wärmepumpe | B40: Typ Wärmepumpe | C40: Type of heat pump | D40: Type of heat pump | E40: Type warmtepomp | F40: Type de pompe à chaleur | G40: Typ tepelného čerpadla | H40: Typ Wärmepumpe
A41: Jahresarbeitszahl | B41: Jahresarbeitszahl | C41: Yearly COP | D41: Yearly COP | E41: SPF (jaarlijks rendement) | F41: SPF (rendement annuel) | G41: Ročné výkonové číslo (COP) | H41: Jahresarbeitszahl
A42: Wärmeverluste [kWh/Tag] | B42: Wärmeverluste [kWh/Tag] | C42: Heat losses [kWh/day] | D42: Heat losses [kWh/day] | E42: Warmteverliezen [kWh/dag] | F42: Déperditions calorifiques | G42: Tepelné straty [kWh/deň] | H42: Wärmeverluste [kWh/Tag]
A43: Investitionskosten [€] | B43: Investitionskosten [€] | C43: Investment costs [€] | D43: Investment costs [£] | E43: Investeringskost [€] | F43: Prix [€] | G43: Investičné náklady [€] | H43: Investitionskosten [€]
A44: Installationskosten [€] | B44: Installationskosten [€] | C44: Installation costs [€] | D44: Installation costs [£] | E44: Installatiekost [€] | F44: Installation [€] | G44: Montážne náklady [€] | H44: Installationskosten [€]
A45: Wärmeerzeuger | B45: Wärmeerzeuger | C45: Heat generator | D45: Heat generator | E45: Warmteopwekker | F45: Source de chaleur | G45: Tepelný generátor | H45: Wärmeerzeuger
A46: Amortisation | B46: Amortisation | C46: Amortization | D46: Amortization | E46: Terugverdientijd | F46: Amortissement | G46: Amortizácia | H46: Amortisation
A47: Amortisation [€] | B47: Amortisation [€] | C47: Amortization [€] | D47: Amortization [£] | E47: Terugverdientijd [€] | F47: Amortissement [€] | G47: Amortizácia [€] | H47: Amortisation [€]
A48: Jahre | B48: Jahre | C48: Years | D48: Years | E48: jaren | F48: années | G48: Roky | H48: Jahre
A49: Ertrag mit Wärmepumpe nach 10 Jahren | B49: Ertrag mit Wärmepumpe nach 10 Jahren | C49: Yield with heat pump in 10 years | D49: Yield with heat pump in 10 years | E49: Opbrengst met warmtepomp na 10 jaar | F49: Bénéfice avec une pompe à chaleur après 10 ans | G49: Výnos s tepelným čerpadlom po 10 rokoch | H49: Ertrag mit Wärmepumpe nach 10 Jahren
A50: Einmalige Kosten | B50: Einmalige Kosten | C50: One-off costs | D50: One-off costs | E50: Eenmalige kosten | F50: Coût unique | G50: Jednorazové náklady | H50: Einmalige Kosten
A51: Mehrkosten einmalig | B51: Mehrkosten einmalig | C51: Repeated costs | D51: Repeated costs | E51: Eenmalige meerkost | F51: Surcoût unique | G51: Náklady jednorazovo | H51: Mehrkosten einmalig
A52: Energiekostenersparnis | B52: Energiekostenersparnis | C52: Energy cost savings | D52: Energy cost savings | E52: Energiekostenbesparing | F52: Réduction des coûts énergétiques | G52: Úspora nákladov na energiu | H52: Energiekostenersparnis
A53: Rendite des eingesetzten Kapitals | B53: Rendite des eingesetzten Kapitals | C53: Return on capital employed | D53: Return on capital employed | E53: Rendement van het ingebracht kapitaal | F53: Rendement du capital injecté | G53: Rendita vloženého kapitálu | H53: Rendite des eingesetzten Kapitals
A54: Rendite | B54: Rendite | C54: Return on capital | D54: Return on capital | E54: Rendement | F54: Rendement | G54: Rendita | H54: Rendite
A55: Eingesetztes Kapital | B55: Eingesetztes Kapital | C55: Invested capital | D55: Invested capital | E55: Ingebracht kapitaal | F55: Capital injecté | G55: Vložený kapitál | H55: Eingesetztes Kapital
A56: Mittlerer Ertrag | B56: Mittlerer Ertrag | C56: Medium income | D56: Medium income | E56: Gemiddelde opbrengst | F56: Bénéfice moyen | G56: Priemerný výnos | H56: Mittlerer Ertrag
A57: Kapitalertrag | B57: Kapitalertrag | C57: Capital gains | D57: Capital gains | E57: Kapitaalopbrengst | F57: Revenu du capital | G57: Kapitálový výnos | H57: Kapitalertrag
A58: Entgangene Zinsen | B58: Entgangene Zinsen | C58: Miss interest rates | D58: Miss interest rates | E58: Verloren intresten | F58: Intérêts perdus | G58: Ušlý úrok | H58: Entgangene Zinsen
A59: € in 10 Jahren | B59: € in 10 Jahren | C59: € in 10 years | D59: £ in 10 years | E59: € op 10 jaar | F59: € sur 10 ans | G59: € za 10 rokov | H59: € in 10 Jahren
A60: Betrachtungszeitraum 10 Jahre | B60: Betrachtungszeitraum 10 Jahre | C60: Period under consideration of 10 years | D60: Period under consideration of 10 years | E60: Beschouwde termijn 10 jaar | F60: Délai considéré 10 ans | G60: Sledované obdobie 10 rokov | H60: Betrachtungszeitraum 10 Jahre
A61: Bank-Guthabenzinssatz | B61: Bank-Guthabenzinssatz | C61: Interest rate of the bank | D61: Interest rate of the bank | E61: Intrestvoet bank | F61: Taux d'intérêt banque | G61: Úroková miera pohľadávky na účte | H61: Bank-Guthabenzinssatz
A62: Bankguthaben | Stromkostenersparnis [€] | B62: Bankguthaben | Stromkostenersparnis [€] | C62: Bank balances | Savings in electricity costs [€] | D62: Bank balances | Savings in electricity costs [£] | E62: Banksaldo | Stroomkostenbesparing [€] | F62: Solde bancaire | Bénéfice consommation énergétique [€] | G62: Pohľadávka na účte | H62: Bankguthaben | Stromkostenersparnis [€]
A63: Geldanlage Bank | B63: Geldanlage Bank | C63: Funds in the bank | D63: Funds in the bank | E63: Geldbelegging bank | F63: Placement bancaire | G63: Peňažný vklad do banky | H63: Geldanlage Bank
A64: Ölkessel + Speicher | B64: Ölkessel + Speicher | C64: Oil boiler + DHW cylinder | D64: Oil boiler + DHW cylinder | E64: Stookolieketel + boiler | F64: Chaudière fuel avec chauffe-eau | G64: Olejový kotol + ohrievač | H64: Ölkessel + Speicher
A65: Gaskessel + Speicher | B65: Gaskessel + Speicher | C65: Gas boiler + DHW cylinder | D65: Gas boiler + DHW cylinder | E65: Gasketel + boiler | F65: Chaudière gaz avec chauffe-eau | G65: Plynový kotol + ohrievač | H65: Gaskessel + Speicher
A66: E-Speicher | B66: E-Speicher | C66: El. Cylinder | D66: El. Cylinder | E66: Elektrische boiler | F66: Chauffe-eau électrique | G66: E-ohrievač vody | H66: E-Speicher
A67: Endenergiebedarf | B67: Endenergiebedarf | C67: Net energy demand | D67: Net energy demand | E67: Eindenergiebehoefte | F67: Besoin énergétique final | G67: Koncová spotreba energie | H67: Endenergiebedarf
A69: Einstellungen | B69: Einstellungen | C69: Options | D69: Options | E69: Instellingen | F69: Paramètres | G69: Nastavenia | H69: Einstellungen
A70: Allgemeine Einstellungen | B70: Allgemeine Einstellungen | C70: General Setting | D70: General Setting | E70: Algemene instellingen | F70: Paramètres généraux | G70: Všeobecné nastavenia | H70: Allgemeine Einstellungen
A71: Alles zurücksetzen | B71: Alles zurücksetzen | C71: Default values | D71: Default values | E71: Alles resetten | F71: Tout réinitialiser | G71: Obnoviť pôvodné nastavenia | H71: Alles zurücksetzen
A72: Speichern & Zurück | B72: Speichern & Zurück | C72: Save & Back | D72: Save & Back | E72: Opslaan en terug | F72: Sauvegarder et retour | G72: Uložiť & späť | H72: Speichern & Zurück
A73: Strompreis | B73: Strompreis | C73: Electricity price | D73: Electricity price | E73: Stroomprijs | F73: Prix de l'électricité | G73: Cena za elektrinu | H73: Strompreis
A74: Ölpreis | B74: Ölpreis | C74: Oil price | D74: Oil price | E74: Stookolieprijs | F74: Prix du mazout | G74: Cena za olej | H74: Ölpreis
A75: Gaspreis | B75: Gaspreis | C75: Gas price | D75: Gas price | E75: Gasprijs | F75: Prix du gaz | G75: Cena za plyn | H75: Gaspreis
A76: Nutzungsdauer Warmwasser | B76: Nutzungsdauer Warmwasser | C76: Up-time DHW | D76: Up-time DHW | E76: Duur jaarlijks warmwaterverbruik | F76: Durée consommation annuelle eau chaude | G76: Doba čerpania teplej vody | H76: Nutzungsdauer Warmwasser
A77: CO2-Emmision Strom | B77: CO2-Emmision Strom | C77: CO2-emmision electricity | D77: CO2-emmision electricity | E77: CO2-uitstoot stroom | F77: CO2-puissance d'émission électricité | G77: emisia CO2 zo spotreby elektriny | H77: CO2-Emmision Strom
A78: CO2-Emmision Öl | B78: CO2-Emmision Öl | C78: CO2-emmision oil | D78: CO2-emmision oil | E78: CO2-uitstoot stookolie | F78: CO2- puissance d'émission mazout | G78: emisia CO2 zo spotreby oleja | H78: CO2-Emmision Öl
A79: CO2-Emmision Gas | B79: CO2-Emmision Gas | C79: CO2-emmision gas | D79: CO2-emmision gas | E79: CO2-uitstoot gas | F79: CO2-puissance d'émission gaz | G79: emisia CO2 zo spotreby plynu | H79: CO2-Emmision Gas
A80: Wochen/Jahr | B80: Wochen/Jahr | C80: Weeks/year | D80: Weeks/year | E80: Weken/jaar | F80: Semaines/année | G80: týždne/rok | H80: Wochen/Jahr
A81: Kaltwassertemperatur | B81: Kaltwassertemperatur | C81: Cold water temperature | D81: Cold water temperature | E81: Koudwatertemperatuur | F81: Température eau froide | G81: Teplota studenej vody | H81: Kaltwassertemperatur
A82: Strompreissteigerung | B82: Strompreissteigerung | C82: Electricity price increase | D82: Electricity price increase | E82: Stoomprijsstijging | F82: Augmentation prix de l'électricité | G82: Zvyšovanie cien elektriny | H82: Strompreissteigerung
A83: Preissteigerung Öl/Gas | B83: Preissteigerung Öl/Gas | C83: Price increase Oil/Gas | D83: Price increase Oil/Gas | E83: Prijsstijging stookolie/gas | F83: Augmentation prix mazout/gaz | G83: Zvyšovanie cien za olej/ plyn | H83: Preissteigerung Öl/Gas
A84: % pro Jahr | B84: % pro Jahr | C84: % per year | D84: % per year | E84: % per jaar | F84: % par an | G84: % za rok | H84: % pro Jahr
A85: Wärmeverluste Warmwasserverteilung | B85: Wärmeverluste Warmwasserverteilung | C85: Heat loss of hot water distribution | D85: Heat loss of hot water distribution | E85: Warmteverliezen warmwaterverdeling | F85: Déperdition chaleur distribution eau chaude | G85: Tepelné straty pri dostribúcii teplej vody | H85: Wärmeverluste Warmwasserverteilung
A86: Mittlerer Durchfluss | B86: Mittlerer Durchfluss | C86: Medium volume flow | D86: Medium volume flow | E86: Gemiddelde doorstroom | F86: Debit moyen | G86: Priemerný prietok | H86: Mittlerer Durchfluss
A87: Entnahmedauer | B87: Entnahmedauer | C87: Time of tapping | D87: Time of tapping | E87: Afnameduur | F87: Durée prélèvement | G87: Čas vypúšťania | H87: Entnahmedauer
A88: Entnahmetemperatur | B88: Entnahmetemperatur | C88: Draw-off temperature | D88: Draw-off temperature | E88: Afnametemperatuur | F88: Température prélèvement | G88: Teplota pri vypúšťaní | H88: Entnahmetemperatur
A89: Liter/min | B89: Liter/min | C89: Liter/min | D89: Liter/min | E89: Liter/min. | F89: Litres/min. | G89: liter/min. | H89: Liter/min
A90: min | B90: min | C90: min | D90: min | E90: min. | F90: min. | G90: min. | H90: min
A91: Alle Änderungen werden verworfen. Fortfahren? | B91: Alle Änderungen werden verworfen. Fortfahren? | C91: Restore to standard values ? | D91: Restore to standard values ? | E91: Alle wijzigingen worden verworpen. Verder gaan? | F91: Toutes les modifications sont rejetées. Continuer ? | G91: Všetky zmeny budú zrušené. Pokračovať? | H91: Alle Änderungen werden verworfen. Fortfahren?
A92: Ct/kWh | B92: Ct/kWh | C92: Ct/kWh | D92: Pence/kWh | E92: Ct/kWh | F92: Ct/kWh | G92: Ct/kWh | H92: Ct/kWh
A93: Anteil integrierter Heizstab Wärmepumpe | B93: Anteil integrierter Heizstab Wärmepumpe | C93: Share integrated electric heater heat pump | D93: Share integrated electric heater heat pump | E93: Aandeel geïntegreerde weerstand | F93: Consommation de la résistance d'appoint | G93: Podiel integrovaného ohrievacieho telesa tepelného čerpadla | H93: Anteil integrierter Heizstab Wärmepumpe
A94: Guthabenzinssatz bei Bank-Geldanlage | B94: Guthabenzinssatz bei Bank-Geldanlage | C94: Interest rate of the bank-investments | D94: Interest rate of the bank-investments | E94: Intrestvoet bij bankbelegging | F94: Taux d'intérêt investissement bancaire | G94: Úroková miera peňažného vkladu v banke | H94: Guthabenzinssatz bei Bank-Geldanlage
A95: Energiepreise | B95: Energiepreise | C95: Energy prices | D95: Energy prices | E95: Energieprijzen | F95: Prix d'énergie | G95: Ceny energie | H95: Energiepreise
A96: Photovoltaikanlage | B96: Photovoltaikanlage | C96: Photovoltaic system | D96: Photovoltaic system | E96: Zonnesysteem | F96: Système solaire | G96: Foltovoltické zariadenie | H96: Photovoltaikanlage
A97: Eigenverbrauchsanteil | B97: Eigenverbrauchsanteil | C97: Own consumption | D97: Own consumption | E97: Aandeel eigen verbruik | F97: Part propre consommation | G97: Podiel vlastnej spotreby | H97: Eigenverbrauchsanteil
A98: Davon werden im Haushalt selbst verbraucht: | B98: Davon werden im Haushalt selbst verbraucht: | C98: Own consumption household: | D98: Own consumption household: | E98: Daarvan wordt in het huishouden zelf verbruikt: | F98: Dont sont utilisées par le ménage : | G98: Z toho je v domácnosti vlastná spotreba: | H98: Davon werden im Haushalt selbst verbraucht:
A99: Strombedarf Haushalt | B99: Strombedarf Haushalt | C99: Electricity demand household | D99: Electricity demand household | E99: Stroomverbruik huishouden | F99: Consommation électrique ménagère | G99: Spotreba elektriny v domácnosti | H99: Strombedarf Haushalt
A100: Einspeisevergütung | B100: Einspeisevergütung | C100: Feed-in remuneration | D100: Feed-in remuneration | E100: Vergoeding injectie in het net | F100: Indemnité injection dans le réseau | G100: Vstupná bonifikácia | H100: Einspeisevergütung
A101: Jährlicher Ertrag Solaranlage | B101: Jährlicher Ertrag Solaranlage | C101: Annual yields of solar thermal system | D101: Annual yields of solar thermal system | E101: Jaarlijkse opbrengst zonnesysteem | F101: Bénéfice annuel système solaire | G101: Ročný výnos solárneho zariadenia | H101: Jährlicher Ertrag Solaranlage
A102: Entnahmestellen und Nutzungshäufigkeit | B102: Entnahmestellen und Nutzungshäufigkeit | C102: Taps and frequency of use | D102: Taps and frequency of use | E102: Taps and frequency of use | F102: Taps and frequency of use | G102: Odberné miesta a frekvencia úživania | H102: Entnahmestellen und Nutzungshäufigkeit
A103: Entnahmestellen | B103: Entnahmestellen | C103: Tap points | D103: Tap points | E103: Tap points | F103: Tap points | G103: Odberné miesta | H103: Entnahmestellen
A104: Nutzungshäufigkeit | B104: Nutzungshäufigkeit | C104: Frequency of use | D104: Frequency of use | E104: Frequency of use | F104: Frequency of use | G104: Frekvencia užívania | H104: Nutzungshäufigkeit
A105: Warmwasser-Wärmepumpe | B105: Warmwasser-Wärmepumpe | C105: DHW-heatpump | D105: DHW-heatpump | E105: DHW-heatpump | F105: DHW-heatpump | G105: Tepelné čerpadlo na ohrev vody | H105: Warmwasser-Wärmepumpe
A106: Warmwassererzeugung | B106: Warmwassererzeugung | C106: Domestic hot water | D106: Domestic hot water | E106: Domestic hot water | F106: Domestic hot water | G106: Príprava teplej vody | H106: Warmwassererzeugung
A107: Speichertemperatur | B107: Speichertemperatur | C107: Cylinder temperature | D107: Cylinder temperature | E107: Cylinder temperature | F107: Cylinder temperature | G107: Teplota v ohrievači vody | H107: Speichertemperatur
A108: Strom | B108: Strom | C108: Electricity | D108: Electricity | E108: Electricity | F108: Electricity | G108: Elektrina | H108: Strom
A109: Öl | B109: Öl | C109: Oil | D109: Oil | E109: Oil | F109: Oil | G109: Olej | H109: Öl
A110: Gas | B110: Gas | C110: Gas | D110: Gas | E110: Gas | F110: Gas | G110: Plyn | H110: Gas
A111: Strom und Photovoltaik | B111: Strom und Photovoltaik | C111: Electricity & PV | D111: Electricity & PV | E111: Electricity & PV | F111: Electricity & PV | G111: Elektrina a fotovoltika | H111: Strom und Photovoltaik
A112: Alter Wärmeerzeuger | B112: Alter Wärmeerzeuger | C112: Old heat generator | D112: Old heat generator | E112: Old heat generator | F112: Old heat generator | G112: Starý zdroj tepla | H112: Alter Wärmeerzeuger
A113: Eingabewerte | B113: Eingabewerte | C113: Input values | D113: Input values | E113: Input values | F113: Input values | G113: Vstupné hodnoty | H113: Eingabewerte
A114: Energieträger | B114: Energieträger | C114: Energy source | D114: Energy source | E114: Energy source | F114: Energy source | G114: Teplonošné médium | H114: Energieträger
A115: Energiepreis | B115: Energiepreis | C115: Energy price | D115: Energy price | E115: Energieprijs | F115: Prix d'énergie | G115: Cena energie | H115: Energiepreis
A116: Wirkungsgrad WWB | B116: Wirkungsgrad WWB | C116: Efficiency DHW | D116: Efficiency DHW | E116: Efficiency DHW | F116: Efficiency DHW | G116: Efektívnosť prípravy teplej vody | H116: Wirkungsgrad WWB
A117: Preissteigerung | B117: Preissteigerung | C117: Price increase | D117: Price increase | E117: Prijsstijging | F117: Augmentation prix | G117: Zvyšovanie ceny | H117: Preissteigerung
A118: CO2-Emmision | B118: CO2-Emmision | C118: CO2-emmision | D118: CO2-emmision | E118: CO2-uitstoot | F118: CO2-puissance d'émission | G118: Emisie CO2 | H118: CO2-Emmision
A119: Rechtliche Hinweise | B119: Rechtliche Hinweise | C119: Legal note | D119: Legal note | E119: Juridische informatie | F119: Clause de non-responsabilité | G119: Právne upozornenia | H119: Rechtliche Hinweise
A120: Stiebel Eltron übernimmt keinerlei Gewährleistung oder Garantie dafür, dass die bereitgestellten Angaben, Werte und Informationen oder die mit Hilfe bzw. anhand dieser Informationen, Werte und Angaben ermittelten Werte und Angaben in jeder Hinsicht vollständig, genau, richtig und aktuell sind. Stiebel Eltron behält sich das Recht vor, jederzeit und ohne vorherige Ankündigung Änderungen der bereitgestellten Angaben, Werte und Informationen vorzunehmen. Irrtum und Änderungen sind ausdrücklich vorbehalten. Keine der bereitgestellten Angaben, Werte und Informationen oder der mit Hilfe bzw. anhand dieser Angaben, Werte und Informationen ermittelten Werte und Angaben sind als Grundlage für eine finanzielle Entscheidung oder für einen sonstigen Zweck anzusehen, sondern dienen vielmehr nur als eine erste unverbindliche Information und als Hilfe zur ersten Orientierung. Unter keinen Umständen ersetzt die Planungshilfe die Beratung durch Stiebel Eltron oder einen autorisierten Fachplaner. Bitte wenden Sie sich für die konkrete Planung des Projektes an Stiebel Eltron oder einen anderen autorisierten Fachplaner. Die Haftung von Stiebel Eltron für Schäden jeglicher Art, die sich möglicherweise aus der Nutzung oder Verwendung der bereitgestellten Informationen, Werte und Angaben oder der mit Hilfe bzw. anhand dieser Angaben, Werte und Informationen ermittelten Werte und Angaben, ergeben, ist ausgeschlossen. Dieser Haftungsausschluss gilt nicht, wenn der Schaden auf Vorsatz oder grobe Fahrlässigkeit von Stiebel Eltron zurückzuführen ist sowie bei einer Verletzung des Lebens, des Körpers oder der Gesundheit. | B120: Stiebel Eltron übernimmt keinerlei Gewährleistung oder Garantie dafür, dass die bereitgestellten Angaben, Werte und Informationen oder die mit Hilfe bzw. anhand dieser Informationen, Werte und Angaben ermittelten Werte und Angaben in jeder Hinsicht vollständig, genau, richtig und aktuell sind. Stiebel Eltron behält sich das Recht vor, jederzeit und ohne vorherige Ankündigung Änderungen der bereitgestellten Angaben, Werte und Informationen vorzunehmen. Irrtum und Änderungen sind ausdrücklich vorbehalten. Keine der bereitgestellten Angaben, Werte und Informationen oder der mit Hilfe bzw. anhand dieser Angaben, Werte und Informationen ermittelten Werte und Angaben sind als Grundlage für eine finanzielle Entscheidung oder für einen sonstigen Zweck anzusehen, sondern dienen vielmehr nur als eine erste unverbindliche Information und als Hilfe zur ersten Orientierung. Unter keinen Umständen ersetzt die Planungshilfe die Beratung durch Stiebel Eltron oder einen autorisierten Fachplaner. Bitte wenden Sie sich für die konkrete Planung des Projektes an Stiebel Eltron oder einen anderen autorisierten Fachplaner. Die Haftung von Stiebel Eltron für Schäden jeglicher Art, die sich möglicherweise aus der Nutzung oder Verwendung der bereitgestellten Informationen, Werte und Angaben oder der mit Hilfe bzw. anhand dieser Angaben, Werte und Informationen ermittelten Werte und Angaben, ergeben, ist ausgeschlossen. Dieser Haftungsausschluss gilt nicht, wenn der Schaden auf Vorsatz oder grobe Fahrlässigkeit von Stiebel Eltron zurückzuführen ist sowie bei einer Verletzung des Lebens, des Körpers oder der Gesundheit. | C120: Stiebel Eltron shall not provide any guarantees that the information, values and data provided, or values, information and recommendations determined with the aid or on the basis of such information, values and data, are complete, accurate, correct or current in every respect. Stiebel Eltron shall reserve the right to make changes to the data, values and information provided at any time and without prior notification. Errors excepted. Subject to changes. None of the information, values and data provided or the values, information and recommendations determined with the aid or on the basis of such information, values and data constitutes any basis for a financial decision or for any other purpose, but rather is merely initial non-binding information as an initial guide. Under no circumstances should the following design tool be considered a substitute for consultation with Stiebel Eltron or another authorised expert engineer. Please contact Stiebel Eltron or another authorised expert engineer in relation to specific project design. Stiebel Eltron shall accept no liability for losses of any kind that may arise from the use of information, values and data provided, or values, information and recommendations determined with the aid or on the basis of such information, values and data. This exclusion of liability shall not apply if the loss is due to intent or gross negligence on the part of Stiebel Eltron or in the event of a fatality, physical injury or damage to health. | D120: Stiebel Eltron shall not provide any guarantees that the information, values and data provided, or values, information and recommendations determined with the aid or on the basis of such information, values and data, are complete, accurate, correct or current in every respect. Stiebel Eltron shall reserve the right to make changes to the data, values and information provided at any time and without prior notification. Errors excepted. Subject to changes. None of the information, values and data provided or the values, information and recommendations determined with the aid or on the basis of such information, values and data constitutes any basis for a financial decision or for any other purpose, but rather is merely initial non-binding information as an initial guide. Under no circumstances should the following design tool be considered a substitute for consultation with Stiebel Eltron or another authorised expert engineer. Please contact Stiebel Eltron or another authorised expert engineer in relation to specific project design. Stiebel Eltron shall accept no liability for losses of any kind that may arise from the use of information, values and data provided, or values, information and recommendations determined with the aid or on the basis of such information, values and data. This exclusion of liability shall not apply if the loss is due to intent or gross negligence on the part of Stiebel Eltron or in the event of a fatality, physical injury or damage to health. | E120: Stiebel Eltron geeft geen enkele garantie dat de aangeboden informatie, waarden en gegevens of de met behulp van of aan de hand van deze informatie, waarden en gegevens berekende waarden, informatie en aanbevelingen in elk opzicht volledig, nauwkeurig, juist en actueel zijn. Stiebel Eltron behoudt zich het recht voor om op elk moment zonder voorafgaande kennisgeving wijzigingen aan te brengen in de aangeboden gegevens, waarden en informatie. Vergissingen en wijzigingen worden door Stiebel Eltron uitdrukkelijk voorbehouden. De aangeboden informatie, waarden en gegevens of de met behulp van of aan de hand van deze informatie, waarden en gegevens berekende waarden, informatie en aanbevelingen betreffen een eerste Stiebel Eltron niet-bindende informatie voorziening die niet kan worden gebruikt als basis voor een financiële beslissing of voor andere doeleinden dan een eerste oriëntatie. Deze planningshulp kan in geen geval dienen als vervanging voor het persoonlijke advies van Stiebel Eltron of een andere geautoriseerde systeemadviseur. Voor de concrete planning van uw project dient u zich te allen tijde te wenden tot Stiebel Eltron of een andere geautoriseerde systeemadviseur. Stiebel Eltron aanvaardt op geen enkele wijze aansprakelijkheid voor schade en/of ander nadeel, direct dan wel indirect, die voortvloeit uit het gebruik of de toepassing van de aangeboden informatie, waarden en gegevens of de met behulp van of aan de hand van deze informatie, waarden en gegevens van berekende waarden, informatie en aanbevelingen. De hierboven omschreven uitsluitingen gelden niet in geval van grove nalatigheid, opzet of schade aan leven, lichaam of gezondheid. | F120: STIEBEL ELTRON ne se porte pas garant de l'exactitude, intégralité, actualité et pertinence des informations, valeurs ou données mises à disposition, ni de toute valeur, information ou recommandation établie à l'aide de ces données, valeurs et informations fournies. STIEBEL ELTRON se réserve le droit de modifier, à tout moment et sans avis préalable, les données, valeurs et informations mises à disposition. Sous réserve de modification et d'erreurs. Les informations, valeurs et données, ou les valeurs, informations et recommandations établies à l'aide de ces informations, valeurs et données, ne doivent être utilisées pour aucune prise de décision financière ou autre. Elles sont fournies à titre indicatif uniquement en ne représentent qu'une source approximative d'information. L'assistant de planification et les informations fournies ci-après ne remplacent en aucun cas le conseil direct d'un expert STIEBEL ELTRON ou de tout autre spécialiste autorisé. Pour la planification concrète de votre projet, veuillez contacter STIEBEL ELTRON ou tout autre spécialiste autorisé. STIEBEL ELTRON décline toute responsabilité pour les dommages éventuels découlant de l'utilisation ou du traitement des informations, valeurs et données mises à disposition, ou des valeurs, informations et recommandations établies à l'aide de ces informations, valeurs et données. Cette exclusion de garantie n'est pas valable en cas de dommage intentionnel découlant d'une négligence grave de la part de Stiebel Eltron, ni en cas d'atteinte à la vie, au corps ou à la santé des utilisateurs. | G120: Stiebel Eltrom neručí za to, že poskytnuté údaje, hodnoty a informácie alebo, že pomocou týchto informácii, hodnôt a údajov vypočítané, či odvodené hodnoty a údaje sú v každom smere úplné, správne a aktuálne. Stiebel Eltron si vyhradzuje právo, kedykoľvek a bez predchádzajúceho upozornenia na zmeny poskytnutých údajov, hodnôt a informácii. Vyhradzujeme si právo na omyly a zmeny. Žiadne z poskytnutých údajov, hodnôt a informácií alebo pomocou, resp. podľa týchto údajov, hodnôt a informácií vypočítané hodnoty a údaje nie sú podkladom pre finančné rozhodnutie alebo pre akýkoľvek iný účel, ale slúžia viac či menej ako prvá nezáväzná informácia a ako pomoc pri jednoduchšej orientácii. Za žiadnych okolností nenahrádza táto pomôcka pri plánovaní poradenskú činnosť Stiebel Eltron alebo iného autorizovaného projektanta. Ručenie Stiebel Eltron za škody akéhokoľvek druhu, ktoré pravdepodobne vyplývajú z užívania alebo aplikovania poskytnutých informácií, hodnôt a údajov alebo za pomoci resp. na základe týchto údajov, hodnôt a informácií vypočítaných hodnôt a údajov, je vylúčené. Vylúčenie záruky neplatí, ak bola škoda vyvodená zámerne alebo v dôsledku hrubej nedbanlivosti spoločnosti Stiebel Eltron, ako aj pri ohrození života alebo zdravia. | H120: Tecalor übernimmt keinerlei Gewährleistung oder Garantie dafür, dass die bereitgestellten Angaben, Werte und Informationen oder die mit Hilfe bzw. anhand dieser Informationen, Werte und Angaben ermittelten Werte und Angaben in jeder Hinsicht vollständig, genau, richtig und aktuell sind. Tecalor behält sich das Recht vor, jederzeit und ohne vorherige Ankündigung Änderungen der bereitgestellten Angaben, Werte und Informationen vorzunehmen. Irrtum und Änderungen sind ausdrücklich vorbehalten. Keine der bereitgestellten Angaben, Werte und Informationen oder der mit Hilfe bzw. anhand dieser Angaben, Werte und Informationen ermittelten Werte und Angaben sind als Grundlage für eine finanzielle Entscheidung oder für einen sonstigen Zweck anzusehen, sondern dienen vielmehr nur als eine erste unverbindliche Information und als Hilfe zur ersten Orientierung. Unter keinen Umständen ersetzt die Planungshilfe die Beratung durch Tecalor oder einen autorisierten Fachplaner. Bitte wenden Sie sich für die konkrete Planung des Projektes an Tecalor oder einen anderen autorisierten Fachplaner. Die Haftung von Tecalor für Schäden jeglicher Art, die sich möglicherweise aus der Nutzung oder Verwendung der bereitgestellten Informationen, Werte und Angaben oder der mit Hilfe bzw. anhand dieser Angaben, Werte und Informationen ermittelten Werte und Angaben, ergeben, ist ausgeschlossen. Dieser Haftungsausschluss gilt nicht, wenn der Schaden auf Vorsatz oder grobe Fahrlässigkeit von Tecalor zurückzuführen ist sowie bei einer Verletzung des Lebens, des Körpers oder der Gesundheit.
A121: Ergebnisse drucken | B121: Ergebnisse drucken | C121: Print results | D121: Print results | E121: Afdruk | F121: Impresssion | G121: Vytlačiť výsledky | H121: Ergebnisse drucken
A122: Einstellungen | B122: Einstellungen | C122: Options | D122: Options | E122: Instellingen | F122: Paramètres | G122: Nastavenia | H122: Einstellungen
A123: Ganzer Bildschirm | B123: Ganzer Bildschirm | C123: Full screen mode | D123: Full screen mode | E123: Volledig scherm modus | F123: Mode plein écran | G123: Celá obrazovka | H123: Ganzer Bildschirm
A124: E-Mail an uns | B124: E-Mail an uns | C124: Send E-Mail | D124: Send E-Mail | E124: E-mail verzenden | F124: Envoyer un mail | G124: Zaslať E-Mail | H124: E-Mail an uns
A125: Programm schließen | B125: Programm schließen | C125: Exit program | D125: Exit program | E125: Programma sluiten | F125: Quitter le programme | G125: Zavrieť program | H125: Programm schließen
